Workbook

Sheet Ark1
A1: Ledertype | B1: Kontakttråd EN 50149 type AC-120 CuAg0,1
A2: Inngangsparametre for leder | B2: Symbol | C2: Verdi | D2: Enhet | E2: Skalert | F2: Enhet | G2: Brukes til
A3: Resistans | B3: r0 | C3: 0.185 | D3: Ohm/km | E3: =C3/1000 -> 0.000185 | F3: Ohm/m | G3: Pel
A4: Referansetemperatur resistans | B4: Tref | C4: 20 | D4: °C | E4: =C4 -> 20 | F4: °C | G4: Pel
A5: Temperaturfaktor for resistans | B5: alfaR | C5: 0.004 | D5: 1/K | E5: =C5 -> 0.004 | F5: 1/K | G5: Pel
A6: Spesifikk varmekapasitet | B6: cp | C6: 0.394 | D6: kJ/(kgK) | E6: =C6*1000 -> 394 | F6: J/(kgK) | G6: Varmelagring
A7: Diameter | B7: d_leder | C7: 13.2 | D7: mm | E7: =C7/1000 -> 0.0132 | F7: m | G7: Qsol,Qstr,Qkonv
A8: Masse | B8: m | C8: =1.067*0.8 -> 0.8536 | D8: kg/m | E8: =C8 -> 0.8536 | F8: kg/m | G8: Varmelagring
A9: Absorpsjonskoeffisient | B9: alfaS | C9: 0.85 | D9: [1] | E9: =C9 -> 0.85 | F9: [1] | G9: Qsol,Qstr
A10: Inngangsparametre for omgivelser | B10: Symbol | C10: Verdi | D10: Enhet | E10: Skalert | F10: Enhet | G10: Brukes til
A11: Tyngdens akselerasjon | B11: g | C11: 9.81 | D11: m/s2 | E11: =C11 -> 9.81 | F11: m/s2 | G11: Qkonv
A12: Vindhastighet tverrvind | B12: v | C12: 1 | D12: m/s | E12: =C12 -> 1 | F12: m/s | G12: Qkonv
A13: Solintensitet | B13: Isol | C13: 1050 | D13: W/m2 | E13: =C13 -> 1050 | F13: W/m2 | G13: Qsol
A14: Stefan-Bolzmanns konstant | B14: sigma | C14: =0.0000000567 -> 5.67e-08 | D14: W/(m2K4) | E14: =C14 -> 5.67e-08 | F14: W/(m2K4) | G14: Qstr
A15: Omgivelsestemperatur | B15: T0 | C15: 25 | D15: °C | E15: =C15 -> 25 | F15: °C | G15: Alle
A17: Eulers metode er benyttet. Denne integrasjonsmetoden kan enklest implementeres i et regneark. Ingen tidsskritt bør overstige ca. 10 sekunder.
A19: Ledertemp | B19: Inngangsverdier for strømbelastning | D19: Varmebalanse | E19: Elektrisk oppvarming | F19: Sol-oppvarming | G19: Avkjøling ved varmestråling | H19: Konvektiv avkjøling | I19: Mellomregninger for beregning av konvektiv avkjøling
A20: °C | B20: s | C20: A | D20: W/m | E20: W/m | F20: W/m | G20: W/m | H20: W/m | I20: W/m2K | L20: IEC 61597 | O20: K | P20: 1/K | Q20: m2/s
A21: T | B21: t | C21: I | D21: dE/dt | E21: Pel | F21: Qsol | G21: Qstråling | H21: Qkonveksjon | I21: h | J21: Nu, kombinert | K21: Nu, fri konv | L21: Nu, forsert konv | M21: Rayleighs tall | N21: Reynolds tall | O21: Filmtemperatur | P21: Beta | Q21: k | R21: v | S21: alfa | T21: Prandtls tall
A22: =C15 -> 25 | B22: 0 | C22: 700 | D22: =E22+F22-G22-H22 -> 104.244 | E22: =$E$3*(1+$E$5*(A22-$E$4))*C22^2 -> 92.463 | F22: =$E$13*$E$7*$E$9 -> 11.781 | G22: =PI()*$E$7*$E$9*$E$14*((A22+273.15)^4-($E$15+273.15)^4) -> 0 | H22: =I22*PI()*$E$7*(A22-$E$15) -> 0 | I22: =Q22*J22/$E$7 -> 32.63782219 | J22: =(K22^4+L22^4)^(1/4) -> 16.47366369 | K22: =(0.6+(0.387*(M22^(1/6)))/((1+(0.559/T22)^(9/16))^(8/27)))^2 -> 0.36 | L22: =0.65*N22^(0.2)+0.23*N22^(0.61) -> 16.47366275 | M22: =$C$11*P22*(A22-$E$15)*$E$7^3/(R22*S22) -> 0 | N22: =$E$12*$E$7/R22 -> 839.4089798 | O22: =(A22+$E$15)/2+273.15 -> 298.15 | P22: =1/O22 -> 0.003354016435 | Q22: =Egen_LinInt1(O22,Materialegenskaper!$B$3:$B$7,Materialegenskaper!$G$3:$G$7) -> 0.026152 | R22: =Egen_LinInt1(O22,Materialegenskaper!$B$3:$B$7,Materialegenskaper!$E$3:$E$7) -> 1.572535e-05 | S22: =Egen_LinInt1(O22,Materialegenskaper!$B$3:$B$7,Materialegenskaper!$D$3:$D$7) -> 2.22558e-05 | T22: =Egen_LinInt1(O22,Materialegenskaper!$B$3:$B$7,Materialegenskaper!$F$3:$F$7) -> 0.707481
A23: =A22+((B23-B22)/($E$8*$E$6))*D22 -> 28.0995628 | B23: =B22+10 -> 10 | C23: =C22 -> 700 | D23: =E23+F23-G23-H23 -> 100.5054737 | E23: 93.58690147 | F23: 11.781 | G23: 0.6670480374 | H23: 4.195379703 | I23: 32.63976547 | J23: =(K23^4+L23^4)^(1/4) -> 16.39690938 | K23: =(0.6+(0.387*(M23^(1/6)))/((1+(0.559/T23)^(9/16))^(8/27)))^2 -> 2.391567069 | L23: =0.65*N23^(0.2)+0.23*N23^(0.61) -> 16.3950539 | M23: 654.9299947 | N23: 832.1103547 | O23: 299.6997814 | P23: =1/O23 -> 0.003336672437 | Q23: =Egen_LinInt1(O23,Materialegenskaper!$B$3:$B$7,Materialegenskaper!$G$3:$G$7) -> 0.02627598251 | R23: =Egen_LinInt1(O23,Materialegenskaper!$B$3:$B$7,Materialegenskaper!$E$3:$E$7) -> 1.586328054e-05 | S23: =Egen_LinInt1(O23,Materialegenskaper!$B$3:$B$7,Materialegenskaper!$D$3:$D$7) -> 2.246037114e-05 | T23: =Egen_LinInt1(O23,Materialegenskaper!$B$3:$B$7,Materialegenskaper!$F$3:$F$7) -> 0.7070780568
A24: 31.08796527 | B24: =B23+10 -> 20 | C24: =C23 -> 700 | D24: 96.88692707 | E24: 94.67049621 | F24: 11.781 | G24: 1.32996795 | H24: 8.234601183 | I24: 32.61719429 | J24: =(K24^4+L24^4)^(1/4) -> 16.31579419 | K24: =(0.6+(0.387*(M24^(1/6)))/((1+(0.559/T24)^(9/16))^(8/27)))^2 -> 2.738892594 | L24: =0.65*N24^(0.2)+0.23*N24^(0.61) -> 16.31255419 | M24: 1256.152013 | N24: 824.4787927 | O24: 301.1939826 | P24: =1/O24 -> 0.00332011945 | Q24: =Egen_LinInt1(O24,Materialegenskaper!$B$3:$B$7,Materialegenskaper!$G$3:$G$7) -> 0.02638835471 | R24: =Egen_LinInt1(O24,Materialegenskaper!$B$3:$B$7,Materialegenskaper!$E$3:$E$7) -> 1.601011465e-05 | S24: =Egen_LinInt1(O24,Materialegenskaper!$B$3:$B$7,Materialegenskaper!$D$3:$D$7) -> 2.267670943e-05 | T24: =Egen_LinInt1(O24,Materialegenskaper!$B$3:$B$7,Materialegenskaper!$F$3:$F$7) -> 0.7068328424
A25: 33.96877485 | B25: 30 | C25: 700 | D25: 93.38706853 | E25: 95.71507776 | F25: 11.781 | G25: 1.987783451 | H25: 12.12122578 | I25: 32.59039433 | J25: 16.2368033 | K25: 2.961747229 | L25: 16.23230746 | M25: 1808.23334 | N25: 817.083514 | O25: 302.6343874 | P25: 0.003304317161 | Q25: =Egen_LinInt1(O25,Materialegenskaper!$B$3:$B$7,Materialegenskaper!$G$3:$G$7) -> 0.02649494467 | R25: =Egen_LinInt1(O25,Materialegenskaper!$B$3:$B$7,Materialegenskaper!$E$3:$E$7) -> 1.615501938e-05 | S25: =Egen_LinInt1(O25,Materialegenskaper!$B$3:$B$7,Materialegenskaper!$D$3:$D$7) -> 2.288988934e-05 | T25: =Egen_LinInt1(O25,Materialegenskaper!$B$3:$B$7,Materialegenskaper!$F$3:$F$7) -> 0.7066311858
A26: 36.74552059 | B26: 40 | C26: 700 | D26: 90.00150986 | E26: 96.72192577 | F26: 11.781 | G26: 2.639601499 | H26: 15.86181441 | I26: 32.56542793 | J26: 16.16169455 | K26: 3.126440616 | L26: 16.15603335 | M26: 2316.252938 | N26: 810.0798637 | O26: 304.0227603 | P26: 0.003289227422 | Q26: =Egen_LinInt1(O26,Materialegenskaper!$B$3:$B$7,Materialegenskaper!$G$3:$G$7) -> 0.02659768426 | R26: =Egen_LinInt1(O26,Materialegenskaper!$B$3:$B$7,Materialegenskaper!$E$3:$E$7) -> 1.629468969e-05 | S26: =Egen_LinInt1(O26,Materialegenskaper!$B$3:$B$7,Materialegenskaper!$D$3:$D$7) -> 2.309536852e-05 | T26: =Egen_LinInt1(O26,Materialegenskaper!$B$3:$B$7,Materialegenskaper!$F$3:$F$7) -> 0.7064368136
A27: 39.42160105 | B27: 50 | C27: 700 | D27: 86.72684753 | E27: 97.69227254 | F27: 11.781 | G27: 3.284590396 | H27: 19.46183461 | I27: 32.54216901 | J27: 16.09025247 | K27: 3.25639476 | L27: 16.08349984 | M27: 2784.448364 | N27: 803.4427995 | O27: 305.3608005 | P27: 0.003274814574 | Q27: =Egen_LinInt1(O27,Materialegenskaper!$B$3:$B$7,Materialegenskaper!$G$3:$G$7) -> 0.02669669924 | R27: =Egen_LinInt1(O27,Materialegenskaper!$B$3:$B$7,Materialegenskaper!$E$3:$E$7) -> 1.642929653e-05 | S27: =Egen_LinInt1(O27,Materialegenskaper!$B$3:$B$7,Materialegenskaper!$D$3:$D$7) -> 2.329339848e-05 | T27: =Egen_LinInt1(O27,Materialegenskaper!$B$3:$B$7,Materialegenskaper!$F$3:$F$7) -> 0.7062494879
A28: 42.00031359 | B28: 60 | C28: 700 | D28: 83.55982471 | E28: 98.62731371 | F28: 11.781 | G28: 3.92198433 | H28: 22.92650467 | I28: 32.52049232 | J28: 16.02227196 | K28: 3.362961172 | L28: 16.01449211 | M28: 3216.577987 | N28: 797.1493084 | O28: 306.6501568 | P28: 0.003261045129 | Q28: =Egen_LinInt1(O28,Materialegenskaper!$B$3:$B$7,Materialegenskaper!$G$3:$G$7) -> 0.0267921116 | R28: =Egen_LinInt1(O28,Materialegenskaper!$B$3:$B$7,Materialegenskaper!$E$3:$E$7) -> 1.655900577e-05 | S28: =Egen_LinInt1(O28,Materialegenskaper!$B$3:$B$7,Materialegenskaper!$D$3:$D$7) -> 2.348422321e-05 | T28: =Egen_LinInt1(O28,Materialegenskaper!$B$3:$B$7,Materialegenskaper!$F$3:$F$7) -> 0.706068978
A29: 44.48485874 | B29: 70 | C29: 700 | D29: 80.49731483 | E29: 99.52820978 | F29: 11.781 | G29: 4.551082269 | H29: 26.26081268 | I29: 32.50027954 | J29: 15.95756045 | K29: 3.452607109 | L29: 15.94881089 | M29: 3615.983276 | N29: 791.1782003 | O29: 307.8924294 | P29: 0.003247887589 | Q29: =Egen_LinInt1(O29,Materialegenskaper!$B$3:$B$7,Materialegenskaper!$G$3:$G$7) -> 0.02688403977 | R29: =Egen_LinInt1(O29,Materialegenskaper!$B$3:$B$7,Materialegenskaper!$E$3:$E$7) -> 1.668397839e-05 | S29: =Egen_LinInt1(O29,Materialegenskaper!$B$3:$B$7,Materialegenskaper!$D$3:$D$7) -> 2.366807955e-05 | T29: =Egen_LinInt1(O29,Materialegenskaper!$B$3:$B$7,Materialegenskaper!$F$3:$F$7) -> 0.7058950599
A30: 46.87834404 | B30: 80 | C30: 700 | D30: 77.53630702 | E30: 100.3960875 | F30: 11.781 | G30: 5.171246545 | H30: 29.46953398 | I30: 32.48142072 | J30: 15.89593787 | K30: 3.529407726 | L30: 15.88627102 | M30: 3985.641944 | N30: 785.5099266 | O30: 309.089172 | P30: 0.0032353123 | Q30: =Egen_LinInt1(O30,Materialegenskaper!$B$3:$B$7,Materialegenskaper!$G$3:$G$7) -> 0.02697259873 | R30: =Egen_LinInt1(O30,Materialegenskaper!$B$3:$B$7,Materialegenskaper!$E$3:$E$7) -> 1.680437071e-05 | S30: =Egen_LinInt1(O30,Materialegenskaper!$B$3:$B$7,Materialegenskaper!$D$3:$D$7) -> 2.384519746e-05 | T30: =Egen_LinInt1(O30,Materialegenskaper!$B$3:$B$7,Materialegenskaper!$F$3:$F$7) -> 0.7057275159
A31: 49.18378754 | B31: 90 | C31: 700 | D31: 74.67389354 | E31: 101.2320414 | F31: 11.781 | G31: 5.781901187 | H31: 32.55724664 | I31: 32.4638144 | J31: 15.837236 | K31: 3.596114765 | L31: 15.82670015 | M31: 4328.213439 | N31: 780.1264206 | O31: 310.2418938 | P31: 0.003223291309 | Q31: =Egen_LinInt1(O31,Materialegenskaper!$B$3:$B$7,Materialegenskaper!$G$3:$G$7) -> 0.02705790014 | R31: =Egen_LinInt1(O31,Materialegenskaper!$B$3:$B$7,Materialegenskaper!$E$3:$E$7) -> 1.692033451e-05 | S31: =Egen_LinInt1(O31,Materialegenskaper!$B$3:$B$7,Materialegenskaper!$D$3:$D$7) -> 2.401580028e-05 | T31: =Egen_LinInt1(O31,Materialegenskaper!$B$3:$B$7,Materialegenskaper!$F$3:$F$7) -> 0.7055661349
A32: 51.40412082 | B32: 100 | C32: 700 | D32: 71.90725909 | E32: 102.0371342 | F32: 11.781 | G32: 6.382530021 | H32: 35.5283451 | I32: 32.44736718 | J32: 15.78129767 | K32: 3.654682542 | L32: 15.76993764 | M32: 4646.078014 | N32: 775.0109564 | O32: 311.3520604 | P32: 0.003211798241 | Q32: =Egen_LinInt1(O32,Materialegenskaper!$B$3:$B$7,Materialegenskaper!$G$3:$G$7) -> 0.02714005247 | R32: =Egen_LinInt1(O32,Materialegenskaper!$B$3:$B$7,Materialegenskaper!$E$3:$E$7) -> 1.703201728e-05 | S32: =Egen_LinInt1(O32,Materialegenskaper!$B$3:$B$7,Materialegenskaper!$D$3:$D$7) -> 2.418010494e-05 | T32: =Egen_LinInt1(O32,Materialegenskaper!$B$3:$B$7,Materialegenskaper!$F$3:$F$7) -> 0.7054107115
A33: 53.54219174 | B33: 110 | C33: 700 | D33: 69.23367188 | E33: 102.8123987 | F33: 11.781 | G33: 6.972674587 | H33: 38.38705226 | I33: 32.43199323 | J33: 15.72797593 | K33: 3.706553446 | L33: 15.7158335 | M33: 4941.370377 | N33: 770.1480243 | O33: 312.4210959 | P33: 0.003200808182 | Q33: =Egen_LinInt1(O33,Materialegenskaper!$B$3:$B$7,Materialegenskaper!$G$3:$G$7) -> 0.02721916109 | R33: =Egen_LinInt1(O33,Materialegenskaper!$B$3:$B$7,Materialegenskaper!$E$3:$E$7) -> 1.713956224e-05 | S33: =Egen_LinInt1(O33,Materialegenskaper!$B$3:$B$7,Materialegenskaper!$D$3:$D$7) -> 2.433832219e-05 | T33: =Egen_LinInt1(O33,Materialegenskaper!$B$3:$B$7,Materialegenskaper!$F$3:$F$7) -> 0.7052610466
A34: 55.60076695 | B34: 120 | C34: 700 | D34: 66.6504761 | E34: 103.5588381 | F34: 11.781 | G34: 7.551931894 | H34: 41.1374301 | I34: 32.41761365 | J34: 15.67713326 | K34: 3.752824714 | L34: 15.66424754 | M34: 5216.008763 | N34: 765.5232199 | O34: 313.4503835 | P34: 0.003190297581 | Q34: =Egen_LinInt1(O34,Materialegenskaper!$B$3:$B$7,Materialegenskaper!$G$3:$G$7) -> 0.02729532838 | R34: =Egen_LinInt1(O34,Materialegenskaper!$B$3:$B$7,Materialegenskaper!$E$3:$E$7) -> 1.724310858e-05 | S34: =Egen_LinInt1(O34,Materialegenskaper!$B$3:$B$7,Materialegenskaper!$D$3:$D$7) -> 2.449065675e-05 | T34: =Egen_LinInt1(O34,Materialegenskaper!$B$3:$B$7,Materialegenskaper!$F$3:$F$7) -> 0.7051169463
A35: 57.58253411 | B35: 130 | C35: 700 | D35: 64.15508564 | E35: 104.2774269 | F35: 11.781 | G35: 8.119952056 | H35: 43.78338917 | I35: 32.40415597 | J35: 15.6286408 | K35: 3.794351624 | L35: 15.61504849 | M35: 5471.720126 | N35: 761.123146 | O35: 314.4412671 | P35: 0.00318024415 | Q35: =Egen_LinInt1(O35,Materialegenskaper!$B$3:$B$7,Materialegenskaper!$G$3:$G$7) -> 0.02736865376 | R35: =Egen_LinInt1(O35,Materialegenskaper!$B$3:$B$7,Materialegenskaper!$E$3:$E$7) -> 1.734279147e-05 | S35: =Egen_LinInt1(O35,Materialegenskaper!$B$3:$B$7,Materialegenskaper!$D$3:$D$7) -> 2.463730752e-05 | T35: =Egen_LinInt1(O35,Materialegenskaper!$B$3:$B$7,Materialegenskaper!$F$3:$F$7) -> 0.7049782226
A36: 59.49010401 | B36: 140 | C36: 700 | D36: 61.74497893 | E36: 104.9691117 | F36: 11.781 | G36: 8.676435833 | H36: 46.32869695 | I36: 32.39155351 | J36: 15.58237773 | K36: 3.831814351 | L36: 15.56811334 | M36: 5710.062015 | N36: 756.9353239 | O36: 315.395052 | P36: 0.003170626786 | Q36: =Egen_LinInt1(O36,Materialegenskaper!$B$3:$B$7,Materialegenskaper!$G$3:$G$7) -> 0.02743923385 | R36: =Egen_LinInt1(O36,Materialegenskaper!$B$3:$B$7,Materialegenskaper!$E$3:$E$7) -> 1.743874223e-05 | S36: =Egen_LinInt1(O36,Materialegenskaper!$B$3:$B$7,Materialegenskaper!$D$3:$D$7) -> 2.47784677e-05 | T36: =Egen_LinInt1(O36,Materialegenskaper!$B$3:$B$7,Materialegenskaper!$F$3:$F$7) -> 0.7048446927
A37: 61.32601245 | B37: 150 | C37: 700 | D37: 59.41769468 | E37: 105.6348121 | F37: 11.781 | G37: 9.221132099 | H37: 48.77698533 | I37: 32.37974497 | J37: 15.53823061 | K37: 3.865762961 | L37: 15.52332667 | M37: 5932.441638 | N37: 752.9481159 | O37: 316.3130062 | P37: 0.003161425488 | Q37: =Egen_LinInt1(O37,Materialegenskaper!$B$3:$B$7,Materialegenskaper!$G$3:$G$7) -> 0.02750716246 | R37: =Egen_LinInt1(O37,Materialegenskaper!$B$3:$B$7,Materialegenskaper!$E$3:$E$7) -> 1.753108843e-05 | S37: =Egen_LinInt1(O37,Materialegenskaper!$B$3:$B$7,Materialegenskaper!$D$3:$D$7) -> 2.491432492e-05 | T37: =Egen_LinInt1(O37,Materialegenskaper!$B$3:$B$7,Materialegenskaper!$F$3:$F$7) -> 0.7047161791
A38: 63.09272205 | B38: 160 | C38: 700 | D38: 57.17082838 | E38: 106.275421 | F38: 11.781 | G38: 9.753835277 | H38: 51.13175735 | I38: 32.36867392 | J38: 15.49609284 | K38: 3.896648672 | L38: 15.48058002 | M38: 6140.132499 | N38: 749.1506539 | O38: 317.196361 | P38: 0.003152621287 | Q38: =Egen_LinInt1(O38,Materialegenskaper!$B$3:$B$7,Materialegenskaper!$G$3:$G$7) -> 0.02757253072 | R38: =Egen_LinInt1(O38,Materialegenskaper!$B$3:$B$7,Materialegenskaper!$E$3:$E$7) -> 1.761995392e-05 | S38: =Egen_LinInt1(O38,Materialegenskaper!$B$3:$B$7,Materialegenskaper!$D$3:$D$7) -> 2.504506143e-05 | T38: =Egen_LinInt1(O38,Materialegenskaper!$B$3:$B$7,Materialegenskaper!$F$3:$F$7) -> 0.7045925095
A39: 64.79262394 | B39: 170 | C39: 700 | D39: 55.00202949 | E39: 106.8918054 | F39: 11.781 | G39: 10.27438274 | H39: 53.39639321 | I39: 32.35828837 | J39: 15.45586414 | K39: 3.924846156 | L39: 15.43977144 | M39: 6334.288964 | N39: 745.5327767 | O39: 318.046312 | P39: 0.003144196183 | Q39: =Egen_LinInt1(O39,Materialegenskaper!$B$3:$B$7,Materialegenskaper!$G$3:$G$7) -> 0.02763542709 | R39: =Egen_LinInt1(O39,Materialegenskaper!$B$3:$B$7,Materialegenskaper!$E$3:$E$7) -> 1.770545898e-05 | S39: =Egen_LinInt1(O39,Materialegenskaper!$B$3:$B$7,Materialegenskaper!$D$3:$D$7) -> 2.517085417e-05 | T39: =Egen_LinInt1(O39,Materialegenskaper!$B$3:$B$7,Materialegenskaper!$F$3:$F$7) -> 0.7044735163
A40: 66.42803935 | B40: 180 | C40: 700 | D40: 52.90899909 | E40: 107.4848071 | F40: 11.781 | G40: 10.78265224 | H40: 55.57415575 | I40: 32.34854041 | J40: 15.41745009 | K40: 3.950669837 | L40: 15.4008049 | M40: 6515.959038 | N40: 742.0849731 | O40: 318.8640197 | P40: 0.00313613308 | Q40: =Egen_LinInt1(O40,Materialegenskaper!$B$3:$B$7,Materialegenskaper!$G$3:$G$7) -> 0.02769593746 | R40: =Egen_LinInt1(O40,Materialegenskaper!$B$3:$B$7,Materialegenskaper!$E$3:$E$7) -> 1.778772038e-05 | S40: =Egen_LinInt1(O40,Materialegenskaper!$B$3:$B$7,Materialegenskaper!$D$3:$D$7) -> 2.529187491e-05 | T40: =Egen_LinInt1(O40,Materialegenskaper!$B$3:$B$7,Materialegenskaper!$F$3:$F$7) -> 0.7043590372
A41: 68.00122117 | B41: =B40+10 -> 190 | C41: 700 | D41: 50.88948811 | E41: 108.0552428 | F41: 11.781 | G41: 11.27855929 | H41: 57.6681954 | I41: =Q41*J41/$E$7 -> 32.33938587 | J41: =(K41^4+L41^4)^(1/4) -> 15.38076171 | K41: =(0.6+(0.387*(M41^(1/6)))/((1+(0.559/T41)^(9/16))^(8/27)))^2 -> 3.974386035 | L41: =0.65*N41^(0.2)+0.23*N41^(0.61) -> 15.36358998 | M41: =$C$11*P41*(A41-$E$15)*$E$7^3/(R41*S41) -> 6686.095598 | N41: =$E$12*$E$7/R41 -> 738.7983303 | O41: =(A41+$E$15)/2+273.15 -> 319.6506106 | P41: =1/O41 -> 0.003128415735 | Q41: =Egen_LinInt1(O41,Materialegenskaper!$B$3:$B$7,Materialegenskaper!$G$3:$G$7) -> 0.02775414518 | R41: =Egen_LinInt1(O41,Materialegenskaper!$B$3:$B$7,Materialegenskaper!$E$3:$E$7) -> 1.786685142e-05 | S41: =Egen_LinInt1(O41,Materialegenskaper!$B$3:$B$7,Materialegenskaper!$D$3:$D$7) -> 2.540829037e-05 | T41: =Egen_LinInt1(O41,Materialegenskaper!$B$3:$B$7,Materialegenskaper!$F$3:$F$7) -> 0.7042489145
A42: 69.51435539 | B42: =B41+10 -> 200 | C42: 700 | D42: 48.94129583 | E42: 108.6039053 | F42: 11.781 | G42: 11.76205469 | H42: 59.68155475 | I42: 32.33078397 | J42: 15.34571506 | K42: 3.996222172 | L42: 15.32804136 | M42: 6845.566289 | N42: 735.6644875 | O42: 320.4071777 | P42: 0.003121028709 | Q42: =Egen_LinInt1(O42,Materialegenskaper!$B$3:$B$7,Materialegenskaper!$G$3:$G$7) -> 0.02781013115 | R42: =Egen_LinInt1(O42,Materialegenskaper!$B$3:$B$7,Materialegenskaper!$E$3:$E$7) -> 1.794296208e-05 | S42: =Egen_LinInt1(O42,Materialegenskaper!$B$3:$B$7,Materialegenskaper!$D$3:$D$7) -> 2.55202623e-05 | T42: =Egen_LinInt1(O42,Materialegenskaper!$B$3:$B$7,Materialegenskaper!$F$3:$F$7) -> 0.7041429951
A43: 70.96956259 | B43: 210 | C43: 700 | D43: 47.06226873 | E43: 109.1315634 | F43: 11.781 | G43: 12.23312195 | H43: 61.61717271 | I43: 32.32269704 | J43: 15.3122309 | K43: 4.016373875 | L43: 15.29407853 | M43: 6995.162264 | N43: 732.6755942 | O43: 321.1347813 | P43: 0.003113957311 | Q43: =Egen_LinInt1(O43,Materialegenskaper!$B$3:$B$7,Materialegenskaper!$G$3:$G$7) -> 0.02786397382 | R43: =Egen_LinInt1(O43,Materialegenskaper!$B$3:$B$7,Materialegenskaper!$E$3:$E$7) -> 1.8016159e-05 | S43: =Egen_LinInt1(O43,Materialegenskaper!$B$3:$B$7,Materialegenskaper!$D$3:$D$7) -> 2.562794763e-05 | T43: =Egen_LinInt1(O43,Materialegenskaper!$B$3:$B$7,Materialegenskaper!$F$3:$F$7) -> 0.7040411306
A44: 72.36889932 | B44: 220 | C44: 700 | D44: 45.25029961 | E44: 109.6389629 | F44: 11.781 | G44: 12.69177495 | H44: 63.47788833 | I44: 32.31509029 | J44: 15.28023438 | K44: 4.035010511 | L44: 15.26162542 | M44: 7135.605913 | N44: 729.8242719 | O44: 321.8344497 | P44: 0.003107187565 | Q44: =Egen_LinInt1(O44,Materialegenskaper!$B$3:$B$7,Materialegenskaper!$G$3:$G$7) -> 0.02791574927 | R44: =Egen_LinInt1(O44,Materialegenskaper!$B$3:$B$7,Materialegenskaper!$E$3:$E$7) -> 1.808654564e-05 | S44: =Egen_LinInt1(O44,Materialegenskaper!$B$3:$B$7,Materialegenskaper!$D$3:$D$7) -> 2.573149855e-05 | T44: =Egen_LinInt1(O44,Materialegenskaper!$B$3:$B$7,Materialegenskaper!$F$3:$F$7) -> 0.703943177
A45: 73.71435944 | B45: 230 | C45: 700 | D45: 43.5033268 | E45: 110.1268267 | F45: 11.781 | G45: 13.13805548 | H45: 65.26644445 | I45: 32.30793154 | J45: 15.24965472 | K45: 4.052279579 | L45: 15.23061015 | M45: 7267.557714 | N45: 727.1035794 | O45: 322.5071797 | P45: 0.003100706164 | Q45: =Egen_LinInt1(O45,Materialegenskaper!$B$3:$B$7,Materialegenskaper!$G$3:$G$7) -> 0.0279655313 | R45: =Egen_LinInt1(O45,Materialegenskaper!$B$3:$B$7,Materialegenskaper!$E$3:$E$7) -> 1.815422228e-05 | S45: =Egen_LinInt1(O45,Materialegenskaper!$B$3:$B$7,Materialegenskaper!$D$3:$D$7) -> 2.58310626e-05 | T45: =Egen_LinInt1(O45,Materialegenskaper!$B$3:$B$7,Materialegenskaper!$F$3:$F$7) -> 0.7038489948
A46: 75.00787555 | B46: 240 | C46: 700 | D46: 41.8193337 | E46: 110.5958557 | F46: 11.781 | G46: 13.572031 | H46: 66.98549098 | I46: 32.30119101 | J46: 15.22042495 | K46: 4.068310212 | L46: 15.20096468 | M46: 7391.622314 | N46: 724.5069811 | O46: 323.1539378 | P46: 0.003094500432 | Q46: =Egen_LinInt1(O46,Materialegenskaper!$B$3:$B$7,Materialegenskaper!$G$3:$G$7) -> 0.0280133914 | R46: =Egen_LinInt1(O46,Materialegenskaper!$B$3:$B$7,Materialegenskaper!$E$3:$E$7) -> 1.821928614e-05 | S46: =Egen_LinInt1(O46,Materialegenskaper!$B$3:$B$7,Materialegenskaper!$D$3:$D$7) -> 2.592678279e-05 | T46: =Egen_LinInt1(O46,Materialegenskaper!$B$3:$B$7,Materialegenskaper!$F$3:$F$7) -> 0.7037584487
A47: 76.25132026 | B47: 250 | C47: 700 | D47: 40.19634825 | E47: 111.0467287 | F47: 11.781 | G47: 13.99379243 | H47: 68.63758805 | I47: 32.29484113 | J47: 15.19248168 | K47: 4.083216009 | L47: 15.17262462 | M47: 7508.353942 | N47: 722.028319 | O47: 323.7756601 | P47: 0.003088558292 | Q47: =Egen_LinInt1(O47,Materialegenskaper!$B$3:$B$7,Materialegenskaper!$G$3:$G$7) -> 0.02805939885 | R47: =Egen_LinInt1(O47,Materialegenskaper!$B$3:$B$7,Materialegenskaper!$E$3:$E$7) -> 1.828183141e-05 | S47: =Egen_LinInt1(O47,Materialegenskaper!$B$3:$B$7,Materialegenskaper!$D$3:$D$7) -> 2.60187977e-05 | T47: =Egen_LinInt1(O47,Materialegenskaper!$B$3:$B$7,Materialegenskaper!$F$3:$F$7) -> 0.7036714076
A48: 77.44650757 | B48: 260 | C48: 700 | D48: 38.63244263 | E48: 111.4801036 | F48: 11.781 | G48: 14.403452 | H48: 70.22520901 | I48: 32.28885635 | J48: 15.16576484 | K48: 4.097097346 | L48: 15.14552899 | M48: 7618.26123 | N48: 719.6617852 | O48: 324.3732538 | P48: 0.003082868234 | Q48: =Egen_LinInt1(O48,Materialegenskaper!$B$3:$B$7,Materialegenskaper!$G$3:$G$7) -> 0.02810362078 | R48: =Egen_LinInt1(O48,Materialegenskaper!$B$3:$B$7,Materialegenskaper!$E$3:$E$7) -> 1.834194933e-05 | S48: =Egen_LinInt1(O48,Materialegenskaper!$B$3:$B$7,Materialegenskaper!$D$3:$D$7) -> 2.610724156e-05 | T48: =Egen_LinInt1(O48,Materialegenskaper!$B$3:$B$7,Materialegenskaper!$F$3:$F$7) -> 0.7035877445
A49: 78.59519413 | B49: 270 | C49: 700 | D49: 37.12573294 | E49: 111.8966174 | F49: 11.781 | G49: 14.80114126 | H49: 71.75074319 | I49: 32.283213 | J49: 15.1402175 | K49: 4.110043273 | L49: 15.11961995 | M49: 7721.811513 | N49: 717.4018991 | O49: 324.9475971 | P49: 0.003077419279 | Q49: =Egen_LinInt1(O49,Materialegenskaper!$B$3:$B$7,Materialegenskaper!$G$3:$G$7) -> 0.02814612218 | R49: =Egen_LinInt1(O49,Materialegenskaper!$B$3:$B$7,Materialegenskaper!$E$3:$E$7) -> 1.839972826e-05 | S49: =Egen_LinInt1(O49,Materialegenskaper!$B$3:$B$7,Materialegenskaper!$D$3:$D$7) -> 2.619224437e-05 | T49: =Egen_LinInt1(O49,Materialegenskaper!$B$3:$B$7,Materialegenskaper!$F$3:$F$7) -> 0.7035073364
A50: 79.69908059 | B50: 280 | C50: 700 | D50: 35.67437893 | E50: 112.2968866 | F50: 11.781 | G50: 15.18700911 | H50: 73.21649858 | I50: 32.27788912 | J50: 15.11578567 | K50: 4.122133086 | L50: 15.09484268 | M50: 7819.434679 | N50: 715.2434844 | O50: 325.4995403 | P50: 0.003072200959 | Q50: =Egen_LinInt1(O50,Materialegenskaper!$B$3:$B$7,Materialegenskaper!$G$3:$G$7) -> 0.02818696598 | R50: =Egen_LinInt1(O50,Materialegenskaper!$B$3:$B$7,Materialegenskaper!$E$3:$E$7) -> 1.845525375e-05 | S50: =Egen_LinInt1(O50,Materialegenskaper!$B$3:$B$7,Materialegenskaper!$D$3:$D$7) -> 2.627393196e-05 | T50: =Egen_LinInt1(O50,Materialegenskaper!$B$3:$B$7,Materialegenskaper!$F$3:$F$7) -> 0.7034300644
A51: 80.75981289 | B51: 290 | C51: 700 | D51: 34.2765838 | E51: 112.6815082 | F51: 11.781 | G51: 15.56121999 | H51: 74.62470437 | I51: 32.27286431 | J51: 15.09241809 | K51: 4.133437641 | L51: 15.07114516 | M51: 7911.52661 | N51: 713.1816493 | O51: 326.0299064 | P51: 0.003067203285 | Q51: =Egen_LinInt1(O51,Materialegenskaper!$B$3:$B$7,Materialegenskaper!$G$3:$G$7) -> 0.02822621308 | R51: =Egen_LinInt1(O51,Materialegenskaper!$B$3:$B$7,Materialegenskaper!$E$3:$E$7) -> 1.850860859e-05 | S51: =Egen_LinInt1(O51,Materialegenskaper!$B$3:$B$7,Materialegenskaper!$D$3:$D$7) -> 2.635242615e-05 | T51: =Egen_LinInt1(O51,Materialegenskaper!$B$3:$B$7,Materialegenskaper!$F$3:$F$7) -> 0.7033558131
A52: 81.77898353 | B52: 300 | C52: 700 | D52: 32.9305939 | E52: 113.0510594 | F52: 11.781 | G52: 15.92395213 | H52: 75.9775134 | I52: 32.26811964 | J52: 15.07006612 | K52: 4.144020452 | L52: 15.04847797 | M52: 7998.452268 | N52: 711.2117681 | O52: 326.5394918 | P52: 0.003062416722 | Q52: =Egen_LinInt1(O52,Materialegenskaper!$B$3:$B$7,Materialegenskaper!$G$3:$G$7) -> 0.02826392239 | R52: =Egen_LinInt1(O52,Materialegenskaper!$B$3:$B$7,Materialegenskaper!$E$3:$E$7) -> 1.855987287e-05 | S52: =Egen_LinInt1(O52,Materialegenskaper!$B$3:$B$7,Materialegenskaper!$D$3:$D$7) -> 2.642784478e-05 | T52: =Egen_LinInt1(O52,Materialegenskaper!$B$3:$B$7,Materialegenskaper!$F$3:$F$7) -> 0.7032844712
A53: 82.75813287 | B53: 310 | C53: 700 | D53: 31.63469858 | E53: 113.406099 | F53: 11.781 | G53: 16.27539589 | H53: 77.2770045 | I53: 32.26363752 | J53: 15.04868354 | K53: 4.153938622 | L53: 15.02679421 | M53: 8080.54847 | N53: 709.3294634 | O53: 327.0290664 | P53: 0.00305783217 | Q53: =Egen_LinInt1(O53,Materialegenskaper!$B$3:$B$7,Materialegenskaper!$G$3:$G$7) -> 0.02830015092 | R53: =Egen_LinInt1(O53,Materialegenskaper!$B$3:$B$7,Materialegenskaper!$E$3:$E$7) -> 1.860912408e-05 | S53: =Egen_LinInt1(O53,Materialegenskaper!$B$3:$B$7,Materialegenskaper!$D$3:$D$7) -> 2.650030183e-05 | T53: =Egen_LinInt1(O53,Materialegenskaper!$B$3:$B$7,Materialegenskaper!$F$3:$F$7) -> 0.7032159307
A54: 83.69875041 | B54: 320 | C54: 700 | D54: 30.38722987 | E54: 113.7471669 | F54: 11.781 | G54: 16.61575226 | H54: 78.52518477 | I54: 32.2594016 | J54: 15.02822643 | K54: 4.163243633 | L54: 15.00604929 | M54: 8158.126382 | N54: 707.530591 | O54: 327.4993752 | P54: 0.00305344094 | Q54: =Egen_LinInt1(O54,Materialegenskaper!$B$3:$B$7,Materialegenskaper!$G$3:$G$7) -> 0.02833495377 | R54: =Egen_LinInt1(O54,Materialegenskaper!$B$3:$B$7,Materialegenskaper!$E$3:$E$7) -> 1.865643715e-05 | S54: =Egen_LinInt1(O54,Materialegenskaper!$B$3:$B$7,Materialegenskaper!$D$3:$D$7) -> 2.656990753e-05 | T54: =Egen_LinInt1(O54,Materialegenskaper!$B$3:$B$7,Materialegenskaper!$F$3:$F$7) -> 0.7031500875
A55: 84.60227605 | B55: 330 | C55: 700 | D55: 29.18656221 | E55: 114.0747853 | F55: 11.781 | G55: 16.94523137 | H55: 79.72399172 | I55: 32.25539665 | J55: 15.00865303 | K55: 4.171982022 | L55: 14.98620082 | M55: 8231.473758 | N55: 705.8112251 | O55: 327.951138 | P55: 0.003049234731 | Q55: =Egen_LinInt1(O55,Materialegenskaper!$B$3:$B$7,Materialegenskaper!$G$3:$G$7) -> 0.02836838421 | R55: =Egen_LinInt1(O55,Materialegenskaper!$B$3:$B$7,Materialegenskaper!$E$3:$E$7) -> 1.870188449e-05 | S55: =Egen_LinInt1(O55,Materialegenskaper!$B$3:$B$7,Materialegenskaper!$D$3:$D$7) -> 2.663676843e-05 | T55: =Egen_LinInt1(O55,Materialegenskaper!$B$3:$B$7,Materialegenskaper!$F$3:$F$7) -> 0.7030868407
A56: 85.47010137 | B56: 340 | C56: 700 | D56: 28.0311122 | E56: 114.3894588 | F56: 11.781 | G56: 17.26405113 | H56: 80.87529542 | I56: 32.25160852 | J56: 14.98992363 | K56: 4.180195955 | L56: 14.96720848 | M56: 8300.856971 | N56: 704.1676445 | O56: 328.3850507 | P56: 0.003045205614 | Q56: =Egen_LinInt1(O56,Materialegenskaper!$B$3:$B$7,Materialegenskaper!$G$3:$G$7) -> 0.02840049375 | R56: =Egen_LinInt1(O56,Materialegenskaper!$B$3:$B$7,Materialegenskaper!$E$3:$E$7) -> 1.87455361e-05 | S56: =Egen_LinInt1(O56,Materialegenskaper!$B$3:$B$7,Materialegenskaper!$D$3:$D$7) -> 2.67009875e-05 | T56: =Egen_LinInt1(O56,Materialegenskaper!$B$3:$B$7,Materialegenskaper!$F$3:$F$7) -> 0.7030260929
A57: 86.30357085 | B57: 350 | C57: 700 | D57: 26.9193382 | E57: 114.6916748 | F57: 11.781 | G57: 17.57243602 | H57: 81.98090056 | I57: 32.24802401 | J57: 14.97200044 | K57: 4.187923726 | L57: 14.94903393 | M57: 8366.522832 | N57: 702.5963207 | O57: 328.8017854 | P57: 0.003041346016 | Q57: =Egen_LinInt1(O57,Materialegenskaper!$B$3:$B$7,Materialegenskaper!$G$3:$G$7) -> 0.02843133212 | R57: =Egen_LinInt1(O57,Materialegenskaper!$B$3:$B$7,Materialegenskaper!$E$3:$E$7) -> 1.878745961e-05 | S57: =Egen_LinInt1(O57,Materialegenskaper!$B$3:$B$7,Materialegenskaper!$D$3:$D$7) -> 2.676266424e-05 | T57: =Egen_LinInt1(O57,Materialegenskaper!$B$3:$B$7,Materialegenskaper!$F$3:$F$7) -> 0.70296775
A58: 87.10398314 | B58: 360 | C58: 700 | D58: 25.84974002 | E58: 114.9819043 | F58: 11.781 | G58: 17.87061585 | H58: 83.04254842 | I58: 32.24463084 | J58: 14.95484748 | K58: 4.19520019 | L58: 14.93164065 | M58: 8428.700249 | N58: 701.0939059 | O58: 329.2019916 | P58: 0.003037648695 | Q58: =Egen_LinInt1(O58,Materialegenskaper!$B$3:$B$7,Materialegenskaper!$G$3:$G$7) -> 0.02846094738 | R58: =Egen_LinInt1(O58,Materialegenskaper!$B$3:$B$7,Materialegenskaper!$E$3:$E$7) -> 1.882772035e-05 | S58: =Egen_LinInt1(O58,Materialegenskaper!$B$3:$B$7,Materialegenskaper!$D$3:$D$7) -> 2.682189475e-05 | T58: =Egen_LinInt1(O58,Materialegenskaper!$B$3:$B$7,Materialegenskaper!$F$3:$F$7) -> 0.7029117212
A59: 87.87259229 | B59: 370 | C59: 700 | D59: 24.82085846 | E59: 115.260602 | F59: 11.781 | G59: 18.15882471 | H59: 84.0619188 | I59: 32.24141755 | J59: 14.93843051 | K59: 4.202057137 | L59: 14.91499388 | M59: 8487.601715 | N59: 699.6572223 | O59: 329.5862961 | P59: 0.003034106732 | Q59: =Egen_LinInt1(O59,Materialegenskaper!$B$3:$B$7,Materialegenskaper!$G$3:$G$7) -> 0.02848938591 | R59: =Egen_LinInt1(O59,Materialegenskaper!$B$3:$B$7,Materialegenskaper!$E$3:$E$7) -> 1.886638139e-05 | S59: =Egen_LinInt1(O59,Materialegenskaper!$B$3:$B$7,Materialegenskaper!$D$3:$D$7) -> 2.687877183e-05 | T59: =Egen_LinInt1(O59,Materialegenskaper!$B$3:$B$7,Materialegenskaper!$F$3:$F$7) -> 0.7028579185
A60: 88.61060896 | B60: 380 | C60: 700 | D60: 23.83127493 | E60: 115.5282068 | F60: 11.781 | G60: 18.43729994 | H60: 85.04063195 | I60: 32.23837344 | J60: 14.92271689 | K60: 4.208523613 | L60: 14.89906052 | M60: 8543.424667 | N60: 698.2832526 | O60: 329.9553045 | P60: 0.003030713513 | Q60: =Egen_LinInt1(O60,Materialegenskaper!$B$3:$B$7,Materialegenskaper!$G$3:$G$7) -> 0.02851669253 | R60: =Egen_LinInt1(O60,Materialegenskaper!$B$3:$B$7,Materialegenskaper!$E$3:$E$7) -> 1.890350363e-05 | S60: =Egen_LinInt1(O60,Materialegenskaper!$B$3:$B$7,Materialegenskaper!$D$3:$D$7) -> 2.693338506e-05 | T60: =Egen_LinInt1(O60,Materialegenskaper!$B$3:$B$7,Materialegenskaper!$F$3:$F$7) -> 0.7028062574
A61: 89.31920162 | B61: 390 | C61: 700 | D61: 22.87961093 | E61: 115.7851425 | F61: 11.781 | G61: 18.70628121 | H61: 85.98025036 | I61: 32.23548854 | J61: 14.90767556 | K61: 4.214626212 | L61: 14.88380902 | M61: 8596.352712 | N61: 696.96913 | O61: 330.3096008 | P61: 0.003027462712 | Q61: =Egen_LinInt1(O61,Materialegenskaper!$B$3:$B$7,Materialegenskaper!$G$3:$G$7) -> 0.02854291046 | R61: =Egen_LinInt1(O61,Materialegenskaper!$B$3:$B$7,Materialegenskaper!$E$3:$E$7) -> 1.893914584e-05 | S61: =Egen_LinInt1(O61,Materialegenskaper!$B$3:$B$7,Materialegenskaper!$D$3:$D$7) -> 2.698582092e-05 | T61: =Egen_LinInt1(O61,Materialegenskaper!$B$3:$B$7,Materialegenskaper!$F$3:$F$7) -> 0.7027566559
A62: 89.99949776 | B62: 400 | C62: 700 | D62: 21.96452759 | E62: 116.0318179 | F62: 11.781 | G62: 18.96600969 | H62: 86.8822806 | I62: 32.23275354 | J62: 14.89327689 | K62: 4.220389321 | L62: 14.86920932 | M62: 8646.55674 | N62: 695.7121303 | O62: 330.6497489 | P62: 0.003024348282 | Q62: =Egen_LinInt1(O62,Materialegenskaper!$B$3:$B$7,Materialegenskaper!$G$3:$G$7) -> 0.02856808142 | R62: =Egen_LinInt1(O62,Materialegenskaper!$B$3:$B$7,Materialegenskaper!$E$3:$E$7) -> 1.897336474e-05 | S62: =Egen_LinInt1(O62,Materialegenskaper!$B$3:$B$7,Materialegenskaper!$D$3:$D$7) -> 2.703616283e-05 | T62: =Egen_LinInt1(O62,Materialegenskaper!$B$3:$B$7,Materialegenskaper!$F$3:$F$7) -> 0.7027090352
A63: 90.65258506 | B63: 410 | C63: 700 | D63: 21.08472507 | E63: 116.2686273 | F63: 11.781 | G63: 19.21672725 | H63: 87.74817502 | I63: 32.23015973 | J63: 14.87949263 | K63: 4.225835341 | L63: 14.85523278 | M63: 8694.195944 | N63: 694.5096633 | O63: 330.9762925 | P63: 0.003021364438 | Q63: =Egen_LinInt1(O63,Materialegenskaper!$B$3:$B$7,Materialegenskaper!$G$3:$G$7) -> 0.02859224565 | R63: =Egen_LinInt1(O63,Materialegenskaper!$B$3:$B$7,Materialegenskaper!$E$3:$E$7) -> 1.900621503e-05 | S63: =Egen_LinInt1(O63,Materialegenskaper!$B$3:$B$7,Materialegenskaper!$D$3:$D$7) -> 2.708449129e-05 | T63: =Egen_LinInt1(O63,Materialegenskaper!$B$3:$B$7,Materialegenskaper!$F$3:$F$7) -> 0.702663319
A64: 91.27951255 | B64: 420 | C64: 700 | D64: 20.23894204 | E64: 116.4959513 | F64: 11.781 | G64: 19.45867572 | H64: 88.5793335 | I64: 32.22769898 | J64: 14.86629586 | K64: 4.230984884 | L64: 14.84185206 | M64: 8739.418735 | N64: 693.3592657 | O64: 331.2897563 | P64: 0.003018505647 | Q64: =Egen_LinInt1(O64,Materialegenskaper!$B$3:$B$7,Materialegenskaper!$G$3:$G$7) -> 0.02861544196 | R64: =Egen_LinInt1(O64,Materialegenskaper!$B$3:$B$7,Materialegenskaper!$E$3:$E$7) -> 1.903774948e-05 | S64: =Egen_LinInt1(O64,Materialegenskaper!$B$3:$B$7,Materialegenskaper!$D$3:$D$7) -> 2.713088393e-05 | T64: =Egen_LinInt1(O64,Materialegenskaper!$B$3:$B$7,Materialegenskaper!$F$3:$F$7) -> 0.7026194341
A65: 91.88129176 | B65: 430 | C65: 700 | D65: 19.42595503 | E65: 116.7141564 | F65: 11.781 | G65: 19.6920963 | H65: 89.37710506 | I65: 32.22536367 | J65: 14.8536609 | K65: 4.235856943 | L65: 14.8290411 | M65: 8782.363592 | N65: 692.2585937 | O65: 331.5906459 | P65: 0.003015766616 | Q65: =Egen_LinInt1(O65,Materialegenskaper!$B$3:$B$7,Materialegenskaper!$G$3:$G$7) -> 0.0286377078 | R65: =Egen_LinInt1(O65,Materialegenskaper!$B$3:$B$7,Materialegenskaper!$E$3:$E$7) -> 1.906801898e-05 | S65: =Egen_LinInt1(O65,Materialegenskaper!$B$3:$B$7,Materialegenskaper!$D$3:$D$7) -> 2.717541559e-05 | T65: =Egen_LinInt1(O65,Materialegenskaper!$B$3:$B$7,Materialegenskaper!$F$3:$F$7) -> 0.7025773096
A66: 92.45889783 | B66: 440 | C66: 700 | D66: 18.64457786 | E66: 116.9235964 | F66: 11.781 | G66: 19.91722895 | H66: 90.14278954 | I66: 32.22314669 | J66: 14.84156323 | K66: 4.240469041 | L66: 14.81677504 | M66: 8823.159819 | N66: 691.2054168 | O66: 331.8794489 | P66: 0.003013142282 | Q66: =Egen_LinInt1(O66,Materialegenskaper!$B$3:$B$7,Materialegenskaper!$G$3:$G$7) -> 0.02865907922 | R66: =Egen_LinInt1(O66,Materialegenskaper!$B$3:$B$7,Materialegenskaper!$E$3:$E$7) -> 1.909707256e-05 | S66: =Egen_LinInt1(O66,Materialegenskaper!$B$3:$B$7,Materialegenskaper!$D$3:$D$7) -> 2.721815844e-05 | T66: =Egen_LinInt1(O66,Materialegenskaper!$B$3:$B$7,Materialegenskaper!$F$3:$F$7) -> 0.7025368772
A67: 93.01327065 | B67: 450 | C67: 700 | D67: 17.89366092 | E67: 117.1246119 | F67: 11.781 | G67: 20.13431186 | H67: 90.87763916 | I67: 32.22104137 | J67: 14.82997948 | K67: 4.244837375 | L67: 14.80503016 | M67: 8861.928252 | N67: 690.1976117 | O67: 332.1566353 | P67: 0.003010627799 | Q67: =Egen_LinInt1(O67,Materialegenskaper!$B$3:$B$7,Materialegenskaper!$G$3:$G$7) -> 0.02867959101 | R67: =Egen_LinInt1(O67,Materialegenskaper!$B$3:$B$7,Materialegenskaper!$E$3:$E$7) -> 1.912495751e-05 | S67: =Egen_LinInt1(O67,Materialegenskaper!$B$3:$B$7,Materialegenskaper!$D$3:$D$7) -> 2.725918203e-05 | T67: =Egen_LinInt1(O67,Materialegenskaper!$B$3:$B$7,Materialegenskaper!$F$3:$F$7) -> 0.7024980711
A68: 93.5453159 | B68: 460 | C68: 700 | D68: 17.17209054 | E68: 117.3175315 | F68: 11.781 | G68: 20.34358098 | H68: 91.58286003 | I68: 32.21904146 | J68: 14.81888732 | K68: 4.248976928 | L68: 14.79378381 | M68: 8898.781895 | N68: 689.2331561 | O68: 332.422658 | P68: 0.003008218532 | Q68: =Egen_LinInt1(O68,Materialegenskaper!$B$3:$B$7,Materialegenskaper!$G$3:$G$7) -> 0.02869927669 | R68: =Egen_LinInt1(O68,Materialegenskaper!$B$3:$B$7,Materialegenskaper!$E$3:$E$7) -> 1.915171939e-05 | S68: =Egen_LinInt1(O68,Materialegenskaper!$B$3:$B$7,Materialegenskaper!$D$3:$D$7) -> 2.729855338e-05 | T68: =Egen_LinInt1(O68,Materialegenskaper!$B$3:$B$7,Materialegenskaper!$F$3:$F$7) -> 0.7024608279
A69: 94.05590618 | B69: 470 | C69: 700 | D69: 16.47878827 | E69: 117.5026716 | F69: 11.781 | G69: 20.54526959 | H69: 92.25961372 | I69: 32.21714112 | J69: 14.80826545 | K69: 4.252901584 | L69: 14.78301438 | M69: 8933.826508 | N69: 688.3101238 | O69: 332.6779531 | P69: 0.003005910042 | Q69: =Egen_LinInt1(O69,Materialegenskaper!$B$3:$B$7,Materialegenskaper!$G$3:$G$7) -> 0.02871816853 | R69: =Egen_LinInt1(O69,Materialegenskaper!$B$3:$B$7,Materialegenskaper!$E$3:$E$7) -> 1.917740208e-05 | S69: =Egen_LinInt1(O69,Materialegenskaper!$B$3:$B$7,Materialegenskaper!$D$3:$D$7) -> 2.733633706e-05 | T69: =Egen_LinInt1(O69,Materialegenskaper!$B$3:$B$7,Materialegenskaper!$F$3:$F$7) -> 0.7024250866
A70: 94.545882 | B70: 480 | C70: 700 | D70: 15.81271019 | E70: 117.6803368 | F70: 11.781 | G70: 20.73960795 | H70: 92.90901867 | I70: 32.21533484 | J70: 14.79809352 | K70: 4.256624219 | L70: 14.77270123 | M70: 8967.161137 | N70: 687.4266793 | O70: 332.922941 | P70: 0.003003698084 | Q70: =Egen_LinInt1(O70,Materialegenskaper!$B$3:$B$7,Materialegenskaper!$G$3:$G$7) -> 0.02873629763 | R70: =Egen_LinInt1(O70,Materialegenskaper!$B$3:$B$7,Materialegenskaper!$E$3:$E$7) -> 1.920204786e-05 | S70: =Egen_LinInt1(O70,Materialegenskaper!$B$3:$B$7,Materialegenskaper!$D$3:$D$7) -> 2.737259527e-05 | T70: =Egen_LinInt1(O70,Materialegenskaper!$B$3:$B$7,Materialegenskaper!$F$3:$F$7) -> 0.7023907883
A71: 95.01605283 | B71: 490 | C71: 700 | D71: 15.17284614 | E71: 117.8508208 | F71: 11.781 | G71: 20.92682296 | H71: 93.53215166 | I71: 32.2136175 | J71: 14.78835212 | K71: 4.260156792 | L71: 14.76282466 | M71: 8998.878612 | N71: 686.5810735 | O71: 333.1580264 | P71: 0.003001578592 | Q71: =Egen_LinInt1(O71,Materialegenskaper!$B$3:$B$7,Materialegenskaper!$G$3:$G$7) -> 0.02875369395 | R71: =Egen_LinInt1(O71,Materialegenskaper!$B$3:$B$7,Materialegenskaper!$E$3:$E$7) -> 1.922569746e-05 | S71: =Egen_LinInt1(O71,Materialegenskaper!$B$3:$B$7,Materialegenskaper!$D$3:$D$7) -> 2.740738791e-05 | T71: =Egen_LinInt1(O71,Materialegenskaper!$B$3:$B$7,Materialegenskaper!$F$3:$F$7) -> 0.7023578763
A72: 95.46719812 | B72: 500 | C72: 0 | D72: -103.456187 | E72: 0 | F72: 11.781 | G72: 21.10713786 | H72: 94.13004916 | I72: 32.21198424 | J72: 14.77902268 | K72: 4.263510423 | L72: 14.75336583 | M72: 9029.06599 | N72: 685.7716388 | O72: 333.3835991 | P72: 0.002999547677 | Q72: =Egen_LinInt1(O72,Materialegenskaper!$B$3:$B$7,Materialegenskaper!$G$3:$G$7) -> 0.02877038633 | R72: =Egen_LinInt1(O72,Materialegenskaper!$B$3:$B$7,Materialegenskaper!$E$3:$E$7) -> 1.924839007e-05 | S72: =Egen_LinInt1(O72,Materialegenskaper!$B$3:$B$7,Materialegenskaper!$D$3:$D$7) -> 2.744077266e-05 | T72: =Egen_LinInt1(O72,Materialegenskaper!$B$3:$B$7,Materialegenskaper!$F$3:$F$7) -> 0.7023262961
A73: 92.39105994 | B73: 510 | C73: 0 | D73: -98.16259702 | E73: 0 | F73: 11.781 | G73: 19.89073251 | H73: 90.05286451 | I73: 32.22340583 | J73: 14.84298255 | K73: 4.239930594 | L73: 14.81821411 | M73: 8818.389822 | N73: 691.3289428 | O73: 331.84553 | P73: 0.003013450264 | Q73: =Egen_LinInt1(O73,Materialegenskaper!$B$3:$B$7,Materialegenskaper!$G$3:$G$7) -> 0.02865656922 | R73: =Egen_LinInt1(O73,Materialegenskaper!$B$3:$B$7,Materialegenskaper!$E$3:$E$7) -> 1.909366031e-05 | S73: =Egen_LinInt1(O73,Materialegenskaper!$B$3:$B$7,Materialegenskaper!$D$3:$D$7) -> 2.721313844e-05 | T73: =Egen_LinInt1(O73,Materialegenskaper!$B$3:$B$7,Materialegenskaper!$F$3:$F$7) -> 0.7025416258
A74: 89.47231993 | B74: 520 | C74: 0 | D74: -93.16689372 | E74: 0 | F74: 11.781 | G74: 18.76461248 | H74: 86.18328124 | I74: 32.23487 | J74: 14.90443119 | K74: 4.215931466 | L74: 14.88051933 | M74: 8607.704357 | N74: 696.6858136 | O74: 330.38616 | P74: 0.00302676117 | Q74: =Egen_LinInt1(O74,Materialegenskaper!$B$3:$B$7,Materialegenskaper!$G$3:$G$7) -> 0.02854857584 | R74: =Egen_LinInt1(O74,Materialegenskaper!$B$3:$B$7,Materialegenskaper!$E$3:$E$7) -> 1.894684769e-05 | S74: =Egen_LinInt1(O74,Materialegenskaper!$B$3:$B$7,Materialegenskaper!$D$3:$D$7) -> 2.699715167e-05 | T74: =Egen_LinInt1(O74,Materialegenskaper!$B$3:$B$7,Materialegenskaper!$F$3:$F$7) -> 0.7027459376
A75: 86.70212081 | B75: 530 | C75: 0 | D75: -88.44920081 | E75: 0 | F75: 11.781 | G75: 17.72066025 | H75: 82.50954056 | I75: 32.24632845 | J75: 14.9634522 | K75: 4.19156442 | L75: 14.9403659 | M75: 8397.59048 | N75: 701.847418 | O75: 329.0010604 | P75: 0.003039503881 | Q75: =Egen_LinInt1(O75,Materialegenskaper!$B$3:$B$7,Materialegenskaper!$G$3:$G$7) -> 0.02844607847 | R75: =Egen_LinInt1(O75,Materialegenskaper!$B$3:$B$7,Materialegenskaper!$E$3:$E$7) -> 1.880750668e-05 | S75: =Egen_LinInt1(O75,Materialegenskaper!$B$3:$B$7,Materialegenskaper!$D$3:$D$7) -> 2.679215694e-05 | T75: =Egen_LinInt1(O75,Materialegenskaper!$B$3:$B$7,Materialegenskaper!$F$3:$F$7) -> 0.7029398515
A76: 84.07219628 | B76: 540 | C76: 0 | D76: -83.99132417 | E76: 0 | F76: 11.781 | G76: 16.7516298 | H76: 79.02069437 | I76: 32.2577387 | J76: 15.02012722 | K76: 4.166878795 | L76: 14.99783622 | M76: 8188.580618 | N76: 706.8189268 | O76: 327.6860981 | P76: 0.00305170102 | Q76: =Egen_LinInt1(O76,Materialegenskaper!$B$3:$B$7,Materialegenskaper!$G$3:$G$7) -> 0.02834877126 | R76: =Egen_LinInt1(O76,Materialegenskaper!$B$3:$B$7,Materialegenskaper!$E$3:$E$7) -> 1.867522147e-05 | S76: =Egen_LinInt1(O76,Materialegenskaper!$B$3:$B$7,Materialegenskaper!$D$3:$D$7) -> 2.659754252e-05 | T76: =Egen_LinInt1(O76,Materialegenskaper!$B$3:$B$7,Materialegenskaper!$F$3:$F$7) -> 0.7031239463
A77: 81.57482105 | B77: 550 | C77: 0 | D77: -79.77657067 | E77: 0 | F77: 11.781 | G77: 15.85103805 | H77: 75.70653262 | I77: 32.2690636 | J77: 15.0745359 | K77: 4.141921927 | L77: 15.05301075 | M77: 7981.160268 | N77: 711.6055069 | O77: 326.4374105 | P77: 0.00306337438 | Q77: =Egen_LinInt1(O77,Materialegenskaper!$B$3:$B$7,Materialegenskaper!$G$3:$G$7) -> 0.02825636838 | R77: =Egen_LinInt1(O77,Materialegenskaper!$B$3:$B$7,Materialegenskaper!$E$3:$E$7) -> 1.85496035e-05 | S77: =Egen_LinInt1(O77,Materialegenskaper!$B$3:$B$7,Materialegenskaper!$D$3:$D$7) -> 2.641273676e-05 | T77: =Egen_LinInt1(O77,Materialegenskaper!$B$3:$B$7,Materialegenskaper!$F$3:$F$7) -> 0.7032987625
A78: 79.20276616 | B78: 560 | C78: 0 | D78: -75.78959051 | E78: 0 | F78: 11.781 | G78: 15.01307161 | H78: 72.5575189 | I78: 32.28027078 | J78: 15.12675599 | K78: 4.116739191 | L78: 15.10596805 | M78: 7775.769668 | N78: 716.2123123 | O78: 325.2513831 | P78: 0.003074544958 | Q78: =Egen_LinInt1(O78,Materialegenskaper!$B$3:$B$7,Materialegenskaper!$G$3:$G$7) -> 0.02816860235 | R78: =Egen_LinInt1(O78,Materialegenskaper!$B$3:$B$7,Materialegenskaper!$E$3:$E$7) -> 1.843028914e-05 | S78: =Egen_LinInt1(O78,Materialegenskaper!$B$3:$B$7,Materialegenskaper!$D$3:$D$7) -> 2.62372047e-05 | T78: =Egen_LinInt1(O78,Materialegenskaper!$B$3:$B$7,Materialegenskaper!$F$3:$F$7) -> 0.7034648064
A79: 76.94925905 | B79: 570 | C79: 0 | D79: -72.01623964 | E79: 0 | F79: 11.781 | G79: 14.23250638 | H79: 69.56473326 | I79: 32.29133221 | J79: 15.17686335 | K79: 4.09137404 | L79: 15.15678478 | M79: 7572.805615 | N79: 720.6444764 | O79: 324.1246295 | P79: 0.00308523299 | Q79: =Egen_LinInt1(O79,Materialegenskaper!$B$3:$B$7,Materialegenskaper!$G$3:$G$7) -> 0.02808522258 | R79: =Egen_LinInt1(O79,Materialegenskaper!$B$3:$B$7,Materialegenskaper!$E$3:$E$7) -> 1.831693773e-05 | S79: =Egen_LinInt1(O79,Materialegenskaper!$B$3:$B$7,Materialegenskaper!$D$3:$D$7) -> 2.607044517e-05 | T79: =Egen_LinInt1(O79,Materialegenskaper!$B$3:$B$7,Materialegenskaper!$F$3:$F$7) -> 0.7036225519
A80: 74.80794773 | B80: 580 | C80: 0 | D80: -68.44345933 | E80: 0 | F80: 11.781 | G80: 13.50463819 | H80: 66.71982113 | I80: 32.30222381 | J80: 15.22493197 | K80: 4.065868045 | L80: 15.20553575 | M80: 7372.623374 | N80: 724.9071029 | O80: 323.0539739 | P80: 0.003095457976 | Q80: =Egen_LinInt1(O80,Materialegenskaper!$B$3:$B$7,Materialegenskaper!$G$3:$G$7) -> 0.02800599407 | R80: =Egen_LinInt1(O80,Materialegenskaper!$B$3:$B$7,Materialegenskaper!$E$3:$E$7) -> 1.820922977e-05 | S80: =Egen_LinInt1(O80,Materialegenskaper!$B$3:$B$7,Materialegenskaper!$D$3:$D$7) -> 2.591198813e-05 | T80: =Egen_LinInt1(O80,Materialegenskaper!$B$3:$B$7,Materialegenskaper!$F$3:$F$7) -> 0.7037724437
A81: 72.77286849 | B81: 590 | C81: 0 | D81: -65.05917041 | E81: 0 | F81: 11.781 | G81: 12.82522262 | H81: 64.01494778 | I81: 32.31292501 | J81: 15.27103399 | K81: 4.040260933 | L81: 15.25229389 | M81: 7175.538676 | N81: 729.0052581 | O81: 322.0364342 | P81: 0.003105238705 | Q81: =Egen_LinInt1(O81,Materialegenskaper!$B$3:$B$7,Materialegenskaper!$G$3:$G$7) -> 0.02793069613 | R81: =Egen_LinInt1(O81,Materialegenskaper!$B$3:$B$7,Materialegenskaper!$E$3:$E$7) -> 1.810686529e-05 | S81: =Egen_LinInt1(O81,Materialegenskaper!$B$3:$B$7,Materialegenskaper!$D$3:$D$7) -> 2.576139227e-05 | T81: =Egen_LinInt1(O81,Materialegenskaper!$B$3:$B$7,Materialegenskaper!$F$3:$F$7) -> 0.7039148992
A82: 70.83841678 | B82: 600 | C82: 0 | D82: -61.8521801 | E82: 0 | F82: 11.781 | G82: 12.19042273 | H82: 61.44275738 | I82: 32.32341844 | J82: 15.31523974 | K82: 4.014590628 | L82: 15.29713034 | M82: 6981.829761 | N82: 732.9439624 | O82: 321.0692084 | P82: 0.003114593284 | Q82: =Egen_LinInt1(O82,Materialegenskaper!$B$3:$B$7,Materialegenskaper!$G$3:$G$7) -> 0.02785912142 | R82: =Egen_LinInt1(O82,Materialegenskaper!$B$3:$B$7,Materialegenskaper!$E$3:$E$7) -> 1.800956236e-05 | S82: =Egen_LinInt1(O82,Materialegenskaper!$B$3:$B$7,Materialegenskaper!$D$3:$D$7) -> 2.561824284e-05 | T82: =Egen_LinInt1(O82,Materialegenskaper!$B$3:$B$7,Materialegenskaper!$F$3:$F$7) -> 0.7040503108
A83: 68.99932085 | B83: 610 | C83: 0 | D83: -58.81209976 | E83: 0 | F83: 11.781 | G83: 11.59676351 | H83: 58.99633625 | I83: 32.33368964 | J83: 15.35761769 | K83: 3.98889329 | L83: 15.34011437 | M83: 6791.739466 | N83: 736.7281834 | O83: 320.1496604 | P83: 0.003123539156 | Q83: =Egen_LinInt1(O83,Materialegenskaper!$B$3:$B$7,Materialegenskaper!$G$3:$G$7) -> 0.02779107487 | R83: =Egen_LinInt1(O83,Materialegenskaper!$B$3:$B$7,Materialegenskaper!$E$3:$E$7) -> 1.791705584e-05 | S83: =Egen_LinInt1(O83,Materialegenskaper!$B$3:$B$7,Materialegenskaper!$D$3:$D$7) -> 2.548214974e-05 | T83: =Egen_LinInt1(O83,Materialegenskaper!$B$3:$B$7,Materialegenskaper!$F$3:$F$7) -> 0.7041790475
A84: 67.25061784 | B84: 620 | C84: 0 | D84: -55.92927193 | E84: 0 | F84: 11.781 | G84: 11.04109217 | H84: 56.66917976 | I84: 32.3437267 | J84: 15.39823455 | K84: 3.963203352 | L84: 15.38131345 | M84: 6605.477315 | N84: 740.3628284 | O84: 319.2753089 | P84: 0.003132093125 | Q84: =Egen_LinInt1(O84,Materialegenskaper!$B$3:$B$7,Materialegenskaper!$G$3:$G$7) -> 0.02772637286 | R84: =Egen_LinInt1(O84,Materialegenskaper!$B$3:$B$7,Materialegenskaper!$E$3:$E$7) -> 1.782909608e-05 | S84: =Egen_LinInt1(O84,Materialegenskaper!$B$3:$B$7,Materialegenskaper!$D$3:$D$7) -> 2.535274572e-05 | T84: =Egen_LinInt1(O84,Materialegenskaper!$B$3:$B$7,Materialegenskaper!$F$3:$F$7) -> 0.7043014568
A85: 65.58763206 | B85: 630 | C85: 0 | D85: -53.19470566 | E85: 0 | F85: 11.781 | G85: 10.5205433 | H85: 54.45516236 | I85: 32.35352005 | J85: 15.43715517 | K85: 3.937553565 | L85: 15.42079324 | M85: 6423.221615 | N85: 743.8527379 | O85: 318.443816 | P85: 0.003140271375 | Q85: =Egen_LinInt1(O85,Materialegenskaper!$B$3:$B$7,Materialegenskaper!$G$3:$G$7) -> 0.02766484239 | R85: =Egen_LinInt1(O85,Materialegenskaper!$B$3:$B$7,Materialegenskaper!$E$3:$E$7) -> 1.774544789e-05 | S85: =Egen_LinInt1(O85,Materialegenskaper!$B$3:$B$7,Materialegenskaper!$D$3:$D$7) -> 2.522968477e-05 | T85: =Egen_LinInt1(O85,Materialegenskaper!$B$3:$B$7,Materialegenskaper!$F$3:$F$7) -> 0.7044178658
A86: 64.00595512 | B86: 640 | C86: 0 | D86: -50.60001883 | E86: =$E$3*(1+$E$5*(A86-$E$4))*C86^2 -> 0 | F86: =$E$13*$E$7*$E$9 -> 11.781 | G86: =PI()*$E$7*$E$9*$E$14*((A86+273.15)^4-($E$15+273.15)^4) -> 10.03250834 | H86: =I86*PI()*$E$7*(A86-$E$15) -> 52.34851049 | I86: 32.36306223 | J86: 15.47444267 | K86: 3.911975032 | L86: 15.4586176 | M86: 6245.121525 | N86: 747.2026794 | O86: 317.6529776 | P86: 0.00314808949 | Q86: =Egen_LinInt1(O86,Materialegenskaper!$B$3:$B$7,Materialegenskaper!$G$3:$G$7) -> 0.02760632034 | R86: =Egen_LinInt1(O86,Materialegenskaper!$B$3:$B$7,Materialegenskaper!$E$3:$E$7) -> 1.766588954e-05 | S86: =Egen_LinInt1(O86,Materialegenskaper!$B$3:$B$7,Materialegenskaper!$D$3:$D$7) -> 2.511264068e-05 | T86: =Egen_LinInt1(O86,Materialegenskaper!$B$3:$B$7,Materialegenskaper!$F$3:$F$7) -> 0.7045285831
A87: =A86+((B87-B86)/($E$8*$E$6))*D86 -> 62.5014279 | B87: 650 | C87: 0 | D87: =E87+F87-G87-H87 -> -48.13738666 | E87: 0 | F87: 11.781 | G87: 9.574608748 | H87: 50.34377791 | I87: 32.37234759 | J87: 15.51015835 | K87: 3.886497249 | L87: 15.49484861 | M87: 6071.299096 | N87: 750.4173419 | O87: 316.9007139 | P87: 0.003155562471 | Q87: =Egen_LinInt1(O87,Materialegenskaper!$B$3:$B$7,Materialegenskaper!$G$3:$G$7) -> 0.02755065283 | R87: =Egen_LinInt1(O87,Materialegenskaper!$B$3:$B$7,Materialegenskaper!$E$3:$E$7) -> 1.759021182e-05 | S87: =Egen_LinInt1(O87,Materialegenskaper!$B$3:$B$7,Materialegenskaper!$D$3:$D$7) -> 2.500130566e-05 | T87: =Egen_LinInt1(O87,Materialegenskaper!$B$3:$B$7,Materialegenskaper!$F$3:$F$7) -> 0.7046339
A88: 61.07012391 | B88: 660 | C88: =C87 -> 0 | D88: -45.79949562 | E88: 0 | F88: 11.781 | G88: 9.144672304 | H88: 48.43582331 | I88: 32.38137217 | J88: 15.54436178 | K88: 3.86114815 | L88: 15.52954656 | M88: 5901.85126 | N88: 753.5013309 | O88: 316.185062 | P88: 0.003162704758 | Q88: =Egen_LinInt1(O88,Materialegenskaper!$B$3:$B$7,Materialegenskaper!$G$3:$G$7) -> 0.02749769458 | R88: =Egen_LinInt1(O88,Materialegenskaper!$B$3:$B$7,Materialegenskaper!$E$3:$E$7) -> 1.751821723e-05 | S88: =Egen_LinInt1(O88,Materialegenskaper!$B$3:$B$7,Materialegenskaper!$D$3:$D$7) -> 2.489538917e-05 | T88: =Egen_LinInt1(O88,Materialegenskaper!$B$3:$B$7,Materialegenskaper!$F$3:$F$7) -> 0.7047340913
A89: 59.70833414 | B89: 670 | C89: 0 | D89: -43.57950211 | E89: 0 | F89: 11.781 | G89: 8.740712253 | H89: 46.61978986 | I89: 32.39013349 | J89: 15.57711075 | K89: 3.835954137 | L89: 15.56276997 | M89: 5736.851774 | N89: 756.4591638 | O89: 315.5041671 | P89: 0.003169530245 | Q89: =Egen_LinInt1(O89,Materialegenskaper!$B$3:$B$7,Materialegenskaper!$G$3:$G$7) -> 0.02744730836 | R89: =Egen_LinInt1(O89,Materialegenskaper!$B$3:$B$7,Materialegenskaper!$E$3:$E$7) -> 1.744971921e-05 | S89: =Egen_LinInt1(O89,Materialegenskaper!$B$3:$B$7,Materialegenskaper!$D$3:$D$7) -> 2.479461673e-05 | T89: =Egen_LinInt1(O89,Materialegenskaper!$B$3:$B$7,Materialegenskaper!$F$3:$F$7) -> 0.7048294166
A90: 58.41255306 | B90: 680 | C90: 0 | D90: -41.47099526 | E90: 0 | F90: 11.781 | G90: 8.360908798 | H90: 44.89108646 | I90: 32.39863037 | J90: 15.60846134 | K90: 3.810940129 | L90: 15.59457564 | M90: 5576.353081 | N90: 759.295266 | O90: 314.8562765 | P90: 0.003176052296 | Q90: =Egen_LinInt1(O90,Materialegenskaper!$B$3:$B$7,Materialegenskaper!$G$3:$G$7) -> 0.02739936446 | R90: =Egen_LinInt1(O90,Materialegenskaper!$B$3:$B$7,Materialegenskaper!$E$3:$E$7) -> 1.738454142e-05 | S90: =Egen_LinInt1(O90,Materialegenskaper!$B$3:$B$7,Materialegenskaper!$D$3:$D$7) -> 2.469872893e-05 | T90: =Egen_LinInt1(O90,Materialegenskaper!$B$3:$B$7,Materialegenskaper!$F$3:$F$7) -> 0.7049201213
A91: 57.17946574 | B91: 690 | C91: 0 | D91: -39.46796335 | E91: 0 | F91: 11.781 | G91: 8.003592717 | H91: 43.24537063 | I91: 32.40686278 | J91: 15.6384679 | K91: 3.786129593 | L91: 15.62501861 | M91: 5420.388125 | N91: 762.0139673 | O91: 314.2397329 | P91: 0.003182283764 | Q91: =Egen_LinInt1(O91,Materialegenskaper!$B$3:$B$7,Materialegenskaper!$G$3:$G$7) -> 0.02735374023 | R91: =Egen_LinInt1(O91,Materialegenskaper!$B$3:$B$7,Materialegenskaper!$E$3:$E$7) -> 1.732251713e-05 | S91: =Egen_LinInt1(O91,Materialegenskaper!$B$3:$B$7,Materialegenskaper!$D$3:$D$7) -> 2.460748046e-05 | T91: =Egen_LinInt1(O91,Materialegenskaper!$B$3:$B$7,Materialegenskaper!$F$3:$F$7) -> 0.7050064374
A92: 56.00593604 | B92: 700 | C92: 0 | D92: -37.56476357 | E92: 0 | F92: 11.781 | G92: 7.667230802 | H92: 41.67853277 | I92: 32.41483171 | J92: 15.66718311 | K92: 3.761544589 | L92: 15.65415223 | M92: 5268.972065 | N92: 764.6194995 | O92: 313.652968 | P92: 0.003188237007 | Q92: =Egen_LinInt1(O92,Materialegenskaper!$B$3:$B$7,Materialegenskaper!$G$3:$G$7) -> 0.02731031963 | R92: =Egen_LinInt1(O92,Materialegenskaper!$B$3:$B$7,Materialegenskaper!$E$3:$E$7) -> 1.726348858e-05 | S92: =Egen_LinInt1(O92,Materialegenskaper!$B$3:$B$7,Materialegenskaper!$D$3:$D$7) -> 2.452063927e-05 | T92: =Egen_LinInt1(O92,Materialegenskaper!$B$3:$B$7,Materialegenskaper!$F$3:$F$7) -> 0.7050885845
A93: 54.88899555 | B93: 710 | C93: 0 | D93: -35.75609455 | E93: 0 | F93: 11.781 | G93: 7.350412914 | H93: 40.18668164 | I93: 32.42253905 | J93: 15.69465796 | K93: 3.737205802 | L93: 15.68202815 | M93: 5122.103929 | N93: 767.1159933 | O93: 313.0944978 | P93: 0.003193923902 | Q93: =Egen_LinInt1(O93,Materialegenskaper!$B$3:$B$7,Materialegenskaper!$G$3:$G$7) -> 0.02726899284 | R93: =Egen_LinInt1(O93,Materialegenskaper!$B$3:$B$7,Materialegenskaper!$E$3:$E$7) -> 1.720730648e-05 | S93: =Egen_LinInt1(O93,Materialegenskaper!$B$3:$B$7,Materialegenskaper!$D$3:$D$7) -> 2.443798567e-05 | T93: =Egen_LinInt1(O93,Materialegenskaper!$B$3:$B$7,Materialegenskaper!$F$3:$F$7) -> 0.7051667703
A94: 53.82583355 | B94: 720 | C94: 0 | D94: -34.03697143 | E94: 0 | F94: 11.781 | G94: 7.051840429 | H94: 38.766131 | I94: 32.42998745 | J94: 15.72094179 | K94: 3.713132586 | L94: 15.70869637 | M94: 4979.76817 | N94: 769.5074768 | O94: 312.5629168 | P94: 0.003199355862 | Q94: =Egen_LinInt1(O94,Materialegenskaper!$B$3:$B$7,Materialegenskaper!$G$3:$G$7) -> 0.02722965584 | R94: =Egen_LinInt1(O94,Materialegenskaper!$B$3:$B$7,Materialegenskaper!$E$3:$E$7) -> 1.715382943e-05 | S94: =Egen_LinInt1(O94,Materialegenskaper!$B$3:$B$7,Materialegenskaper!$D$3:$D$7) -> 2.435931168e-05 | T94: =Egen_LinInt1(O94,Materialegenskaper!$B$3:$B$7,Materialegenskaper!$F$3:$F$7) -> 0.7052411917
A95: 52.81378748 | B95: 730 | C95: 0 | D95: -32.40270325 | E95: 0 | F95: 11.781 | G95: 6.770315935 | H95: 37.41338732 | I95: 32.43718025 | J95: 15.74608232 | K95: 3.689342995 | L95: 15.73420523 | M95: 4841.936149 | N95: 771.7978737 | O95: 312.0568937 | P95: 0.003204543851 | Q95: =Egen_LinInt1(O95,Materialegenskaper!$B$3:$B$7,Materialegenskaper!$G$3:$G$7) -> 0.02719221014 | R95: =Egen_LinInt1(O95,Materialegenskaper!$B$3:$B$7,Materialegenskaper!$E$3:$E$7) -> 1.710292351e-05 | S95: =Egen_LinInt1(O95,Materialegenskaper!$B$3:$B$7,Materialegenskaper!$D$3:$D$7) -> 2.428442027e-05 | T95: =Egen_LinInt1(O95,Materialegenskaper!$B$3:$B$7,Materialegenskaper!$F$3:$F$7) -> 0.7053120349
A96: 51.8503343 | B96: 740 | C96: 0 | D96: -30.84887228 | E96: 0 | F96: 11.781 | G96: 6.504734008 | H96: 36.12513827 | I96: 32.44412134 | J96: 15.77012568 | K96: 3.665853822 | L96: 15.75860147 | M96: 4708.567527 | N96: 773.9910027 | O96: 311.5751671 | P96: 0.003209498399 | Q96: =Egen_LinInt1(O96,Materialegenskaper!$B$3:$B$7,Materialegenskaper!$G$3:$G$7) -> 0.02715656237 | R96: =Egen_LinInt1(O96,Materialegenskaper!$B$3:$B$7,Materialegenskaper!$E$3:$E$7) -> 1.705446182e-05 | S96: =Egen_LinInt1(O96,Materialegenskaper!$B$3:$B$7,Materialegenskaper!$D$3:$D$7) -> 2.421312474e-05 | T96: =Egen_LinInt1(O96,Materialegenskaper!$B$3:$B$7,Materialegenskaper!$F$3:$F$7) -> 0.7053794766
A97: 50.9330823 | B97: 750 | C97: 0 | D97: -29.37131515 | E97: 0 | F97: 11.781 | G97: 6.254072952 | H97: 34.8982422 | I97: 32.45081512 | J97: 15.79311643 | K97: 3.642680638 | L97: 15.78193024 | M97: 4579.611571 | N97: 776.0905759 | O97: 311.1165412 | P97: 0.003214229614 | Q97: =Egen_LinInt1(O97,Materialegenskaper!$B$3:$B$7,Materialegenskaper!$G$3:$G$7) -> 0.02712262405 | R97: =Egen_LinInt1(O97,Materialegenskaper!$B$3:$B$7,Materialegenskaper!$E$3:$E$7) -> 1.700832404e-05 | S97: =Egen_LinInt1(O97,Materialegenskaper!$B$3:$B$7,Materialegenskaper!$D$3:$D$7) -> 2.414524809e-05 | T97: =Egen_LinInt1(O97,Materialegenskaper!$B$3:$B$7,Materialegenskaper!$F$3:$F$7) -> 0.7054436842
A98: 50.05976359 | B98: 760 | C98: 0 | D98: -27.96610565 | E98: 0 | F98: 11.781 | G98: 6.017387388 | H98: 33.72971826 | I98: 32.4572664 | J98: 15.8150976 | K98: 3.61983782 | L98: 15.80423514 | M98: 4455.00838 | N98: 778.1001997 | O98: 310.6798818 | P98: 0.003218747201 | Q98: =Egen_LinInt1(O98,Materialegenskaper!$B$3:$B$7,Materialegenskaper!$G$3:$G$7) -> 0.02709031125 | R98: =Egen_LinInt1(O98,Materialegenskaper!$B$3:$B$7,Materialegenskaper!$E$3:$E$7) -> 1.696439611e-05 | S98: =Egen_LinInt1(O98,Materialegenskaper!$B$3:$B$7,Materialegenskaper!$D$3:$D$7) -> 2.408062251e-05 | T98: =Egen_LinInt1(O98,Materialegenskaper!$B$3:$B$7,Materialegenskaper!$F$3:$F$7) -> 0.7055048165
A99: 49.228227 | B99: 770 | C99: 0 | D99: -26.62953889 | E99: 0 | F99: 11.781 | G99: 5.793801593 | H99: 32.6167373 | I99: 32.46348034 | J99: 15.8361107 | K99: 3.597338593 | L99: 15.82555824 | M99: 4334.690027 | N99: 780.0233736 | O99: 310.2641135 | P99: 0.003223060472 | Q99: =Egen_LinInt1(O99,Materialegenskaper!$B$3:$B$7,Materialegenskaper!$G$3:$G$7) -> 0.0270595444 | R99: =Egen_LinInt1(O99,Materialegenskaper!$B$3:$B$7,Materialegenskaper!$E$3:$E$7) -> 1.692256982e-05 | S99: =Egen_LinInt1(O99,Materialegenskaper!$B$3:$B$7,Materialegenskaper!$D$3:$D$7) -> 2.40190888e-05 | T99: =Egen_LinInt1(O99,Materialegenskaper!$B$3:$B$7,Materialegenskaper!$F$3:$F$7) -> 0.7055630241
A100: 48.43643152 | B100: 780 | C100: 0 | D100: -25.35811678 | E100: 0 | F100: 11.781 | G100: 5.582503505 | H100: 31.55661327 | I100: 32.46946239 | J100: 15.85619577 | K100: 3.575195057 | L100: 15.84594012 | M100: 4218.581617 | N100: 781.8634914 | O100: 309.8682158 | P100: 0.003227178359 | Q100: =Egen_LinInt1(O100,Materialegenskaper!$B$3:$B$7,Materialegenskaper!$G$3:$G$7) -> 0.02703024797 | R100: =Egen_LinInt1(O100,Materialegenskaper!$B$3:$B$7,Materialegenskaper!$E$3:$E$7) -> 1.688274251e-05 | S100: =Egen_LinInt1(O100,Materialegenskaper!$B$3:$B$7,Materialegenskaper!$D$3:$D$7) -> 2.396049593e-05 | T100: =Egen_LinInt1(O100,Materialegenskaper!$B$3:$B$7,Materialegenskaper!$F$3:$F$7) -> 0.7056184498
A101: 47.68244016 | B101: 790 | C101: 0 | D101: -24.14853468 | E101: 0 | F101: 11.781 | G101: 5.382739318 | H101: 30.54679536 | I101: =Q101*J101/$E$7 -> 32.4752182 | J101: =(K101^4+L101^4)^(1/4) -> 15.87539143 | K101: =(0.6+(0.387*(M101^(1/6)))/((1+(0.559/T101)^(9/16))^(8/27)))^2 -> 3.553418227 | L101: =0.65*N101^(0.2)+0.23*N101^(0.61) -> 15.86541991 | M101: =$C$11*P101*(A101-$E$15)*$E$7^3/(R101*S101) -> 4106.602272 | N101: =$E$12*$E$7/R101 -> 783.6238413 | O101: =(A101+$E$15)/2+273.15 -> 309.4912201 | P101: =1/O101 -> 0.003231109431 | Q101: =Egen_LinInt1(O101,Materialegenskaper!$B$3:$B$7,Materialegenskaper!$G$3:$G$7) -> 0.02700235029 | R101: =Egen_LinInt1(O101,Materialegenskaper!$B$3:$B$7,Materialegenskaper!$E$3:$E$7) -> 1.684481674e-05 | S101: =Egen_LinInt1(O101,Materialegenskaper!$B$3:$B$7,Materialegenskaper!$D$3:$D$7) -> 2.390470057e-05 | T101: =Egen_LinInt1(O101,Materialegenskaper!$B$3:$B$7,Materialegenskaper!$F$3:$F$7) -> 0.7056712292
A102: 46.96441418 | B102: 800 | C102: 0 | D102: -22.99766911 | E102: 0 | F102: 11.781 | G102: 5.19380861 | H102: 29.5848605 | I102: 32.48075363 | J102: 15.89373486 | K102: 3.532018061 | L102: 15.88403532 | M102: 3998.666037 | N102: 785.307607 | O102: 309.1322071 | P102: 0.003234861904 | Q102: =Egen_LinInt1(O102,Materialegenskaper!$B$3:$B$7,Materialegenskaper!$G$3:$G$7) -> 0.02697578332 | R102: =Egen_LinInt1(O102,Materialegenskaper!$B$3:$B$7,Materialegenskaper!$E$3:$E$7) -> 1.680870003e-05 | S102: =Egen_LinInt1(O102,Materialegenskaper!$B$3:$B$7,Materialegenskaper!$D$3:$D$7) -> 2.385156665e-05 | T102: =Egen_LinInt1(O102,Materialegenskaper!$B$3:$B$7,Materialegenskaper!$F$3:$F$7) -> 0.705721491
A103: 46.28060774 | B103: 810 | C103: 0 | D103: -21.90256639 | E103: 0 | F103: 11.781 | G103: 5.015059927 | H103: 28.66850647 | I103: 32.48607465 | J103: 15.91126191 | K103: 3.511003493 | L103: 15.90182265 | M103: 3894.682716 | N103: 786.9178687 | O103: 308.7903039 | P103: 0.003238443654 | Q103: =Egen_LinInt1(O103,Materialegenskaper!$B$3:$B$7,Materialegenskaper!$G$3:$G$7) -> 0.02695048249 | R103: =Egen_LinInt1(O103,Materialegenskaper!$B$3:$B$7,Materialegenskaper!$E$3:$E$7) -> 1.677430457e-05 | S103: =Egen_LinInt1(O103,Materialegenskaper!$B$3:$B$7,Materialegenskaper!$D$3:$D$7) -> 2.380096497e-05 | T103: =Egen_LinInt1(O103,Materialegenskaper!$B$3:$B$7,Materialegenskaper!$F$3:$F$7) -> 0.7057693575
A104: 45.62936277 | B104: 820 | C104: 0 | D104: -20.86043214 | E104: 0 | F104: 11.781 | G104: 4.8458868 | H104: 27.79554534 | I104: 32.49118733 | J104: 15.92800705 | K104: 3.490382469 | L104: 15.91881688 | M104: 3794.558636 | N104: 788.4576044 | O104: 308.4646814 | P104: 0.00324186223 | Q104: =Egen_LinInt1(O104,Materialegenskaper!$B$3:$B$7,Materialegenskaper!$G$3:$G$7) -> 0.02692638642 | R104: =Egen_LinInt1(O104,Materialegenskaper!$B$3:$B$7,Materialegenskaper!$E$3:$E$7) -> 1.674154695e-05 | S104: =Egen_LinInt1(O104,Materialegenskaper!$B$3:$B$7,Materialegenskaper!$D$3:$D$7) -> 2.375277285e-05 | T104: =Egen_LinInt1(O104,Materialegenskaper!$B$3:$B$7,Materialegenskaper!$F$3:$F$7) -> 0.7058149446
A105: 45.00910435 | B105: 830 | C105: 0 | D105: -19.86862154 | E105: 0 | F105: 11.781 | G105: 4.685724125 | H105: 26.96389741 | I105: 32.4960978 | J105: 15.94400348 | K105: 3.470161971 | L105: 15.93505164 | M105: 3698.197349 | N105: 789.9296915 | O105: 308.1545522 | P105: 0.003245124867 | Q105: =Egen_LinInt1(O105,Materialegenskaper!$B$3:$B$7,Materialegenskaper!$G$3:$G$7) -> 0.02690343686 | R105: =Egen_LinInt1(O105,Materialegenskaper!$B$3:$B$7,Materialegenskaper!$E$3:$E$7) -> 1.671034795e-05 | S105: =Egen_LinInt1(O105,Materialegenskaper!$B$3:$B$7,Materialegenskaper!$D$3:$D$7) -> 2.370687372e-05 | T105: =Egen_LinInt1(O105,Materialegenskaper!$B$3:$B$7,Materialegenskaper!$F$3:$F$7) -> 0.7058583627
A106: 44.41833615 | B106: =B105+10 -> 840 | C106: 0 | D106: -18.92463038 | E106: 0 | F106: 11.781 | G106: 4.534044883 | H106: 26.17158549 | I106: 32.50081223 | J106: 15.95928314 | K106: 3.450348055 | L106: 15.9505593 | M106: 3605.500268 | N106: 791.3369083 | O106: 307.8591681 | P106: 0.003248238492 | Q106: =Egen_LinInt1(O106,Materialegenskaper!$B$3:$B$7,Materialegenskaper!$G$3:$G$7) -> 0.02688157844 | R106: =Egen_LinInt1(O106,Materialegenskaper!$B$3:$B$7,Materialegenskaper!$E$3:$E$7) -> 1.668063231e-05 | S106: =Egen_LinInt1(O106,Materialegenskaper!$B$3:$B$7,Materialegenskaper!$D$3:$D$7) -> 2.366315687e-05 | T106: =Egen_LinInt1(O106,Materialegenskaper!$B$3:$B$7,Materialegenskaper!$F$3:$F$7) -> 0.7058997165
A107: 43.85563633 | B107: 850 | C107: 0 | D107: -18.02608665 | E107: 0 | F107: 11.781 | G107: 4.390357155 | H107: 25.41672949 | I107: 32.50533676 | J107: 15.97387671 | K107: 3.430945879 | L107: 15.96537098 | M107: 3516.367244 | N107: 792.681936 | O107: 307.5778182 | P107: 0.003251209746 | Q107: =Egen_LinInt1(O107,Materialegenskaper!$B$3:$B$7,Materialegenskaper!$G$3:$G$7) -> 0.02686075854 | R107: =Egen_LinInt1(O107,Materialegenskaper!$B$3:$B$7,Materialegenskaper!$E$3:$E$7) -> 1.665232851e-05 | S107: =Egen_LinInt1(O107,Materialegenskaper!$B$3:$B$7,Materialegenskaper!$D$3:$D$7) -> 2.362151709e-05 | T107: =Egen_LinInt1(O107,Materialegenskaper!$B$3:$B$7,Materialegenskaper!$F$3:$F$7) -> 0.7059391055
A108: 43.31965356 | B108: 860 | C108: 0 | D108: -17.1707428 | E108: 0 | F108: 11.781 | G108: 4.254201411 | H108: 24.69754139 | I108: 32.50967752 | J108: 15.9878137 | K108: 3.411959733 | L108: 15.9795166 | M108: 3430.697094 | N108: 793.9673603 | O108: 307.3098268 | P108: 0.003254044983 | Q108: =Egen_LinInt1(O108,Materialegenskaper!$B$3:$B$7,Materialegenskaper!$G$3:$G$7) -> 0.02684092718 | R108: =Egen_LinInt1(O108,Materialegenskaper!$B$3:$B$7,Materialegenskaper!$E$3:$E$7) -> 1.662536857e-05 | S108: =Egen_LinInt1(O108,Materialegenskaper!$B$3:$B$7,Materialegenskaper!$D$3:$D$7) -> 2.358185436e-05 | T108: =Egen_LinInt1(O108,Materialegenskaper!$B$3:$B$7,Materialegenskaper!$F$3:$F$7) -> 0.7059766243
A109: 42.80910335 | B109: 870 | C109: 0 | D109: -16.35646849 | E109: 0 | F109: 11.781 | G109: 4.125148039 | H109: 24.01232045 | I109: 32.51384061 | J109: 16.00112247 | K109: 3.393393071 | L109: 15.99302489 | M109: 3348.388066 | N109: 795.1956736 | O109: 307.0545517 | P109: 0.003256750289 | Q109: =Egen_LinInt1(O109,Materialegenskaper!$B$3:$B$7,Materialegenskaper!$G$3:$G$7) -> 0.02682203682 | R109: =Egen_LinInt1(O109,Materialegenskaper!$B$3:$B$7,Materialegenskaper!$E$3:$E$7) -> 1.65996879e-05 | S109: =Egen_LinInt1(O109,Materialegenskaper!$B$3:$B$7,Materialegenskaper!$D$3:$D$7) -> 2.354407365e-05 | T109: =Egen_LinInt1(O109,Materialegenskaper!$B$3:$B$7,Materialegenskaper!$F$3:$F$7) -> 0.7060123628
A110: 42.32276456 | B110: 880 | C110: 0 | D110: -15.58124385 | E110: 0 | F110: 11.781 | G110: 4.002795086 | H110: 23.35944877 | I110: 32.51783203 | J110: 16.01383024 | K110: 3.375248538 | L110: 16.00592347 | M110: 3269.338268 | N110: 796.3692773 | O110: 306.8113823 | P110: 0.003259331491 | Q110: =Egen_LinInt1(O110,Materialegenskaper!$B$3:$B$7,Materialegenskaper!$G$3:$G$7) -> 0.02680404229 | R110: =Egen_LinInt1(O110,Materialegenskaper!$B$3:$B$7,Materialegenskaper!$E$3:$E$7) -> 1.657522506e-05 | S110: =Egen_LinInt1(O110,Materialegenskaper!$B$3:$B$7,Materialegenskaper!$D$3:$D$7) -> 2.350808458e-05 | T110: =Egen_LinInt1(O110,Materialegenskaper!$B$3:$B$7,Materialegenskaper!$F$3:$F$7) -> 0.7060464065
A111: 41.85947609 | B111: 890 | C111: 0 | D111: -14.8431532 | E111: 0 | F111: 11.781 | G111: 3.886766207 | H111: 22.73738699 | I111: 32.52165774 | J111: 16.02596315 | K111: 3.357528006 | L111: 16.01823883 | M111: 3193.44604 | N111: 797.4904837 | O111: 306.579738 | P111: 0.003261794163 | Q111: =Egen_LinInt1(O111,Materialegenskaper!$B$3:$B$7,Materialegenskaper!$G$3:$G$7) -> 0.02678690062 | R111: =Egen_LinInt1(O111,Materialegenskaper!$B$3:$B$7,Materialegenskaper!$E$3:$E$7) -> 1.655192165e-05 | S111: =Egen_LinInt1(O111,Materialegenskaper!$B$3:$B$7,Materialegenskaper!$D$3:$D$7) -> 2.347380123e-05 | T111: =Egen_LinInt1(O111,Materialegenskaper!$B$3:$B$7,Materialegenskaper!$F$3:$F$7) -> 0.7060788367
A112: 41.4181338 | B112: 900 | C112: 0 | D112: -14.14037916 | E112: 0 | F112: 11.781 | G112: 3.776708776 | H112: 22.14467038 | I112: 32.52532358 | J112: 16.03754631 | K112: 3.3402326 | L112: 16.02999643 | M112: 3120.610293 | N112: 798.5615182 | O112: 306.3590669 | P112: 0.003264143641 | Q112: =Egen_LinInt1(O112,Materialegenskaper!$B$3:$B$7,Materialegenskaper!$G$3:$G$7) -> 0.02677057095 | R112: =Egen_LinInt1(O112,Materialegenskaper!$B$3:$B$7,Materialegenskaper!$E$3:$E$7) -> 1.652972213e-05 | S112: =Egen_LinInt1(O112,Materialegenskaper!$B$3:$B$7,Materialegenskaper!$D$3:$D$7) -> 2.34411419e-05 | T112: =Egen_LinInt1(O112,Materialegenskaper!$B$3:$B$7,Materialegenskaper!$F$3:$F$7) -> 0.7061097306
A113: 40.9976876 | B113: 910 | C113: 0 | D113: -13.4711972 | E113: 0 | F113: 11.781 | G113: 3.672292168 | H113: 21.57990503 | I113: 32.52883529 | J113: 16.04860378 | K113: 3.323362727 | L113: 16.04122068 | M113: 3050.730803 | N113: 799.584522 | O113: 306.1488438 | P113: 0.003266385029 | Q113: =Egen_LinInt1(O113,Materialegenskaper!$B$3:$B$7,Materialegenskaper!$G$3:$G$7) -> 0.02675501444 | R113: =Egen_LinInt1(O113,Materialegenskaper!$B$3:$B$7,Materialegenskaper!$E$3:$E$7) -> 1.650857369e-05 | S113: =Egen_LinInt1(O113,Materialegenskaper!$B$3:$B$7,Materialegenskaper!$D$3:$D$7) -> 2.341002888e-05 | T113: =Egen_LinInt1(O113,Materialegenskaper!$B$3:$B$7,Materialegenskaper!$F$3:$F$7) -> 0.7061391619
A114: 40.59713868 | B114: 920 | C114: 0 | D114: -12.83397047 | E114: 0 | F114: 11.781 | G114: 3.573206179 | H114: 21.04176429 | I114: 32.53219851 | J114: 16.05915866 | K114: 3.306918112 | L114: 16.05193499 | M114: 2983.708473 | N114: 800.5615539 | O114: 305.9485693 | P114: 0.00326852321 | Q114: =Egen_LinInt1(O114,Materialegenskaper!$B$3:$B$7,Materialegenskaper!$G$3:$G$7) -> 0.02674019413 | R114: =Egen_LinInt1(O114,Materialegenskaper!$B$3:$B$7,Materialegenskaper!$E$3:$E$7) -> 1.648842608e-05 | S114: =Egen_LinInt1(O114,Materialegenskaper!$B$3:$B$7,Materialegenskaper!$D$3:$D$7) -> 2.338038826e-05 | T114: =Egen_LinInt1(O114,Materialegenskaper!$B$3:$B$7,Materialegenskaper!$F$3:$F$7) -> 0.7061672003
A115: 40.21553689 | B115: 930 | C115: 0 | D115: -12.22714497 | E115: 0 | F115: 11.781 | G115: 3.479159579 | H115: 20.52898539 | I115: 32.53541873 | J115: 16.06923311 | K115: 3.290897821 | L115: 16.06216182 | M115: 2919.44556 | N115: 801.4945928 | O115: 305.7577684 | P115: 0.003270562855 | Q115: =Egen_LinInt1(O115,Materialegenskaper!$B$3:$B$7,Materialegenskaper!$G$3:$G$7) -> 0.02672607486 | R115: =Egen_LinInt1(O115,Materialegenskaper!$B$3:$B$7,Materialegenskaper!$E$3:$E$7) -> 1.646923151e-05 | S115: =Egen_LinInt1(O115,Materialegenskaper!$B$3:$B$7,Materialegenskaper!$D$3:$D$7) -> 2.335214973e-05 | T115: =Egen_LinInt1(O115,Materialegenskaper!$B$3:$B$7,Materialegenskaper!$F$3:$F$7) -> 0.7061939124
A116: 39.85197828 | B116: 940 | C116: 0 | D116: -11.64924509 | E116: 0 | F116: 11.781 | G116: 3.389878784 | H116: 20.04036631 | I116: 32.53850133 | J116: 16.07884836 | K116: 3.275300298 | L116: 16.07192271 | M116: 2857.845871 | N116: 802.3855405 | O116: 305.5759891 | P116: 0.003272508428 | Q116: =Egen_LinInt1(O116,Materialegenskaper!$B$3:$B$7,Materialegenskaper!$G$3:$G$7) -> 0.0267126232 | R116: =Egen_LinInt1(O116,Materialegenskaper!$B$3:$B$7,Materialegenskaper!$E$3:$E$7) -> 1.645094451e-05 | S116: =Egen_LinInt1(O116,Materialegenskaper!$B$3:$B$7,Materialegenskaper!$D$3:$D$7) -> 2.332524639e-05 | T116: =Egen_LinInt1(O116,Materialegenskaper!$B$3:$B$7,Materialegenskaper!$F$3:$F$7) -> 0.7062193615
A117: 39.50560279 | B117: 950 | C117: 0 | D117: -11.09886935 | E117: 0 | F117: 11.781 | G117: 3.305106631 | H117: 19.57476272 | I117: 32.54145157 | J117: 16.08802475 | K117: 3.260123391 | L117: 16.0812383 | M117: 2798.814931 | N117: 803.2362231 | O117: 305.4028014 | P117: 0.003274364202 | Q117: =Egen_LinInt1(O117,Materialegenskaper!$B$3:$B$7,Materialegenskaper!$G$3:$G$7) -> 0.0266998073 | R117: =Egen_LinInt1(O117,Materialegenskaper!$B$3:$B$7,Materialegenskaper!$E$3:$E$7) -> 1.643352182e-05 | S117: =Egen_LinInt1(O117,Materialegenskaper!$B$3:$B$7,Materialegenskaper!$D$3:$D$7) -> 2.329961461e-05 | T117: =Egen_LinInt1(O117,Materialegenskaper!$B$3:$B$7,Materialegenskaper!$F$3:$F$7) -> 0.7062436078
A118: 39.17559202 | B118: 960 | C118: 0 | D118: -10.57468639 | E118: 0 | F118: 11.781 | G118: 3.224601256 | H118: 19.13108513 | I118: 32.54427453 | J118: 16.09678179 | K118: 3.245364384 | L118: 16.09012835 | M118: 2742.26013 | N118: 804.0483945 | O118: 305.237796 | P118: 0.003276134257 | Q118: =Egen_LinInt1(O118,Materialegenskaper!$B$3:$B$7,Materialegenskaper!$G$3:$G$7) -> 0.0266875969 | R118: =Egen_LinInt1(O118,Materialegenskaper!$B$3:$B$7,Materialegenskaper!$E$3:$E$7) -> 1.641692228e-05 | S118: =Egen_LinInt1(O118,Materialegenskaper!$B$3:$B$7,Materialegenskaper!$D$3:$D$7) -> 2.327519381e-05 | T118: =Egen_LinInt1(O118,Materialegenskaper!$B$3:$B$7,Materialegenskaper!$F$3:$F$7) -> 0.7062667086
A119: 38.86116717 | B119: 970 | C119: 0 | D119: -10.07543129 | E119: 0 | F119: 11.781 | G119: 3.14813506 | H119: 18.70829623 | I119: 32.5469752 | J119: 16.10513816 | K119: 3.231020027 | L119: 16.09861182 | M119: 2688.090837 | N119: 804.8237375 | O119: 305.0805836 | P119: 0.003277822496 | Q119: =Egen_LinInt1(O119,Materialegenskaper!$B$3:$B$7,Materialegenskaper!$G$3:$G$7) -> 0.02667596319 | R119: =Egen_LinInt1(O119,Materialegenskaper!$B$3:$B$7,Materialegenskaper!$E$3:$E$7) -> 1.640110671e-05 | S119: =Egen_LinInt1(O119,Materialegenskaper!$B$3:$B$7,Materialegenskaper!$D$3:$D$7) -> 2.325192637e-05 | T119: =Egen_LinInt1(O119,Materialegenskaper!$B$3:$B$7,Materialegenskaper!$F$3:$F$7) -> 0.7062887183
A120: 38.56158703 | B120: 980 | C120: 0 | D120: -9.59990203 | E120: 0 | F120: 11.781 | G120: 3.075493748 | H120: 18.30540828 | I120: 32.54955838 | J120: 16.11311175 | K120: 3.217086567 | L120: 16.10670686 | M120: 2636.218505 | N120: 805.5638672 | O120: 304.9307935 | P120: 0.003279432649 | Q120: =Egen_LinInt1(O120,Materialegenskaper!$B$3:$B$7,Materialegenskaper!$G$3:$G$7) -> 0.02666487872 | R120: =Egen_LinInt1(O120,Materialegenskaper!$B$3:$B$7,Materialegenskaper!$E$3:$E$7) -> 1.638603783e-05 | S120: =Egen_LinInt1(O120,Materialegenskaper!$B$3:$B$7,Materialegenskaper!$D$3:$D$7) -> 2.322975744e-05 | T120: =Egen_LinInt1(O120,Materialegenskaper!$B$3:$B$7,Materialegenskaper!$F$3:$F$7) -> 0.7063096889
A121: 38.27614615 | B121: 990 | C121: 0 | D121: -9.146956161 | E121: 0 | F121: 11.781 | G121: 3.006475457 | H121: 17.9214807 | I121: 32.55202876 | J121: 16.12071969 | K121: 3.203559778 | L121: 16.11443083 | M121: 2586.556747 | N121: 806.2703326 | O121: 304.7880731 | P121: 0.00328096828 | Q121: =Egen_LinInt1(O121,Materialegenskaper!$B$3:$B$7,Materialegenskaper!$G$3:$G$7) -> 0.02665431741 | R121: =Egen_LinInt1(O121,Materialegenskaper!$B$3:$B$7,Materialegenskaper!$E$3:$E$7) -> 1.637168015e-05 | S121: =Egen_LinInt1(O121,Materialegenskaper!$B$3:$B$7,Materialegenskaper!$D$3:$D$7) -> 2.320863481e-05 | T121: =Egen_LinInt1(O121,Materialegenskaper!$B$3:$B$7,Materialegenskaper!$F$3:$F$7) -> 0.7063296698
A122: 38.00417304 | B122: 1000 | C122: 0 | D122: -8.715507719 | E122: 0 | F122: 11.781 | G122: 2.94088993 | H122: 17.55561779 | I122: 32.55439086 | J122: 16.12797839 | K122: 3.190434993 | L122: 16.12180037 | M122: 2539.0214 | N122: 806.944619 | O122: 304.6520865 | P122: 0.003282432795 | Q122: =Egen_LinInt1(O122,Materialegenskaper!$B$3:$B$7,Materialegenskaper!$G$3:$G$7) -> 0.0266442544 | R122: =Egen_LinInt1(O122,Materialegenskaper!$B$3:$B$7,Materialegenskaper!$E$3:$E$7) -> 1.63579999e-05 | S122: =Egen_LinInt1(O122,Materialegenskaper!$B$3:$B$7,Materialegenskaper!$D$3:$D$7) -> 2.31885088e-05 | T122: =Egen_LinInt1(O122,Materialegenskaper!$B$3:$B$7,Materialegenskaper!$F$3:$F$7) -> 0.7063487079

Sheet Materialegenskaper
A1: Materialegenskaper for luft:
A2: Indeks | B2: Temperatur [K] | C2: Temperatur [°C] | D2: alfa (Termisk diffusivitet) [m2/s] | E2: v (kinematisk viskositet) [m2/s] | F2: Pr (Prandtls tall) | G2: k (termisk konduktivitet) [W/(m*K)]
A3: 0 | B3: 250 | C3: =B3-273.15 -> -23.15 | D3: 1.59e-05 | E3: 1.144e-05 | F3: 0.72 | G3: 0.0223
A4: 1 | B4: 300 | C4: =B4-273.15 -> 26.85 | D4: 2.25e-05 | E4: 1.589e-05 | F4: 0.707 | G4: 0.0263
A5: 2 | B5: 350 | C5: =B5-273.15 -> 76.85 | D5: 2.99e-05 | E5: 2.092e-05 | F5: 0.7 | G5: 0.03
A6: 3 | B6: 400 | C6: =B6-273.15 -> 126.85 | D6: 3.83e-05 | E6: 2.641e-05 | F6: 0.69 | G6: 0.0338
A7: 4 | B7: 450 | C7: =B7-273.15 -> 176.85 | D7: 4.72e-05 | E7: 3.239e-05 | F7: 0.686 | G7: 0.0373
